Workbook

Sheet Min_Tests
B1: Rank | C1: primary_fuel | D1: ORIS code | E1: Plant Name | F1: Unit Number | G1: boiler_id | H1: Unit Type | I1: boiler_type | J1: MWe_capacity | K1: max_heat_input | L1: Unit_heat_rate | M1: Fuel types | N1: fuel | O1: Sulfur Dioxide - CEMS | P1: Sulfur Dioxide MW - CEMS | Q1: Sulfur Dioxide - ERT | R1: Sulfur Dioxide MW - ERT | S1: Sulfur Dioxide - ETTS | T1: Sulfur Dioxide MW - ETTS | U1: Sulfur Dioxide - Part II | V1: Sulfur Dioxide MW - Part II | W1: Sulfur Dioxide - min | X1: Sulfur Dioxide lb/MWh - min | Y1: control_group_1 | Z1: control_type_1 | AA1: install_date_1 | AB1: control_group_2 | AC1: control_type_2 | AD1: install_date_2 | AE1: control_group_3 | AF1: control_type_3 | AG1: install_date_3 | AH1: control_group_4 | AI1: control_type_4 | AJ1: install_date_4 | AK1: control_group_5 | AL1: control_type_5 | AM1: install_date_5 | AN1: control_group_6 | AO1: control_type_6 | AP1: install_date_6 | AQ1: control_group_7 | AR1: control_type_7 | AS1: install_date_7 | AT1: control_group_8 | AU1: control_type_8 | AV1: install_date_8 | AW1: control_group_9 | AX1: control_type_9 | AY1: install_date_9 | AZ1: control_group_10 | BA1: control_type_10 | BB1: install_date_10 | BC1: control_group_11 | BD1: control_type_11 | BE1: install_date_11 | BF1: control_group_12 | BG1: control_type_12 | BH1: install_date_12
A2: =D2&"_"&G2 -> 10373_CB1302 | B2: 1 | C2: petroleum coke | D2: 10373 | E2: Hanford | F2: 1A | G2: CB1302 | H2: Fluidized bed firing | I2: Fluidized bed firing | J2: 27.06 | K2: 290 | L2: 10.71692535 | M2: petroleum coke | N2: petroleum coke | O2: 0.05893333333 | P2: 0.631584134 | S2: =T2/L2 -> 0.05764306547 | T2: =Variability!I7 -> 0.6177564296 | U2: 0.02295556589 | V2: 0.2460130861 | W2: =Variability!G2 -> 0.02295556589 | X2: 0.2460130861 | Y2: PM control | Z2: Fabric Filter, pulse | AA2: 1991-08-01
A3: 50931_BLR1 | B3: 2 | C3: petroleum coke | D3: 50931 | E3: Yellowstone Energy LP | F3: Config1 | G3: BLR1 | H3: Fluidized bed firing | I3: Fluidized bed firing | J3: 30 | K3: 518 | L3: 17.26666667 | M3: petroleum coke | N3: petroleum coke | S3: 0.0293 | T3: 0.5059133333 | U3: 0.3923419907 | V3: 6.774438373 | W3: 0.0293 | X3: 0.5059133333 | Y3: PM control | Z3: Fabric Filter, pulse | AA3: 1995-07-01
A4: 50931_BLR2 | B4: 3 | C4: petroleum coke | D4: 50931 | E4: Yellowstone Energy LP | F4: Config1 | G4: BLR2 | H4: Fluidized bed firing | I4: Fluidized bed firing | J4: 30 | K4: 518 | L4: 17.26666667 | M4: petroleum coke | N4: petroleum coke | S4: 0.0293 | T4: 0.5059133333 | U4: 0.3923419907 | V4: 6.774438373 | W4: 0.0293 | X4: 0.5059133333 | Y4: PM control | Z4: Fabric Filter, pulse | AA4: 1995-07-01
A5: 667_1A | B5: 4 | C5: petroleum coke | D5: 667 | E5: Northside Generating Station | F5: 1A | G5: 1A | H5: Fluidized bed firing | I5: Fluidized bed firing | J5: 310 | K5: 2764 | L5: 8.916129032 | M5: petroleum coke, bituminous | N5: petroleum coke, bituminous | O5: 0.1521333333 | P5: 1.35644043 | Q5: 0.1514391165 | R5: 1.350250703 | W5: 0.1514391165 | X5: 1.350250703 | Y5: NOx control | Z5: Selective Noncatalytic Reduction | AA5: 2002-05-01 | AB5: SO2 control | AC5: Dry FGD - Spray Dryer | AD5: 2002-05-01 | AE5: PM control | AF5: Fabric Filter, pulse | AG5: 2002-05-01
A6: 667_2A | B6: 5 | C6: petroleum coke | D6: 667 | E6: Northside Generating Station | F6: 2A | G6: 2A | H6: Fluidized bed firing | I6: Fluidized bed firing | J6: 310 | K6: 2764 | L6: 8.916129032 | M6: petroleum coke, bituminous | N6: petroleum coke, bituminous | O6: 0.1724 | P6: 1.537140645 | Q6: 0.1712988713 | R6: 1.52732284 | W6: 0.1712988713 | X6: 1.52732284 | Y6: NOx control | Z6: Selective Noncatalytic Reduction | AA6: 2002-02-01 | AB6: SO2 control | AC6: Dry FGD - Spray Dryer | AD6: 2002-02-01 | AE6: PM control | AF6: Fabric Filter, pulse | AG6: 2002-02-01
A7: 2878_1 | B7: 6 | C7: petroleum coke | D7: 2878 | E7: Bay Shore | F7: Unit 1 | G7: 1 | H7: Fluidized bed firing | I7: Fluidized bed firing | J7: 151 | K7: 1218 | L7: 8.066225166 | M7: petroleum coke | N7: petroleum coke | Q7: 0.3772214667 | R7: 3.042753288 | W7: 0.3772214667 | X7: 3.042753288 | Y7: PM control | Z7: Fabric Filter, unspecified | AA7: 2000-12-01
A8: 4125_9 | B8: 7 | C8: petroleum coke | D8: 4125 | E8: Manitowoc | F8: B-09 | G8: 9 | H8: Fluidized bed firing | I8: Fluidized bed firing | J8: 63.37 | K8: 1244 | L8: 19.6307401 | M8: petroleum coke, subbituminous, other--wood charcoal/paper pellets | N8: petroleum coke, subbituminous, other--wood charcoal/paper pellets | Q8: 0.2724293274 | R8: 5.347989322 | W8: 0.2724293274 | X8: 5.347989322 | Y8: NOx control | Z8: Selective Noncatalytic Reduction | AB8: PM control | AC8: Fabric Filter, pulse
A9: 10670_AAB001 | B9: 8 | C9: petroleum coke | D9: 10670 | E9: AES Deepwater | F9: Deepwater | G9: AAB001 | H9: Conventional Boiler | I9: Arch firing | J9: 158 | K9: 1817.6 | L9: 11.50379747 | M9: petroleum coke | N9: petroleum coke | O9: 0.6047826087 | P9: 6.957296643 | W9: 0.6047826087 | X9: 6.957296643 | Y9: NOx control | Z9: Selective Catalytic Reduction | AA9: 2007-03-01 | AB9: PM control | AC9: Electrostatic precipitator, cold side, w/o flue gas conditioning | AD9: 1985-08-01 | AE9: SO2 control | AF9: Wet FGD - Spray Type | AG9: 1985-08-01 | AH9: Other control | AI9: Wet electrostatic precipitator | AJ9: 1985-08-01
A10: 6190_3-1 | B10: 9 | C10: petroleum coke | D10: 6190 | E10: Rodemacher | F10: 003-1 | G10: 3-1 | H10: Fluidized bed firing | I10: Fluidized bed firing | J10: 351.9 | K10: 2807.9 | L10: 7.97925547 | M10: petroleum coke | N10: petroleum coke | X10: No ICR Data | Y10: NOx control | Z10: Selective Noncatalytic Reduction | AB10: PM control | AC10: Single cyclone | AE10: SO2 control | AF10: Dry FGD - Circulating Dry Scrubber | AH10: PM control | AI10: Fabric Filter, pulse
A11: 6190_3-2 | B11: 10 | C11: petroleum coke | D11: 6190 | E11: Rodemacher | F11: 003-2 | G11: 3-2 | H11: Fluidized bed firing | I11: Fluidized bed firing | J11: 351.9 | K11: 2807.9 | L11: 7.97925547 | M11: petroleum coke | N11: petroleum coke | X11: No ICR Data | Y11: NOx control | Z11: Selective Noncatalytic Reduction | AB11: PM control | AC11: Single cyclone | AE11: SO2 control | AF11: Dry FGD - Circulating Dry Scrubber | AH11: PM control | AI11: Fabric Filter, pulse

Sheet Variability
A1: Key f_b | B1: Facility Name | C1: facility_id | D1: boiler_id | E1: configuration_id | F1: compound | G1: Final_EF | H1: Final_EF_Units | I1: Final_Output_EF | J1: Final_Output_EF_Units | K1: From | L1: BDL | M1: Report_id | N1: Rank
A2: =C2&"_"&D2 -> 10373_CB1302 | B2: =VLOOKUP(A2,Min_Tests!A:E,5,FALSE) -> Hanford | C2: 10373 | D2: CB1302 | E2: 1A | F2: Sulfur Dioxide | G2: 0.02295556589 | H2: lb/MMBtu | I2: 0.2677959027 | J2: lb/MW | K2: Part II | L2: No | M2: 2007 Emission Compliance and RATA Report\07015.4c | N2: =+VLOOKUP(C2&"_"&D2,Min_Tests!A:B,2,FALSE) -> 1
A3: 10373_CB1302 | B3: =VLOOKUP(A3,Min_Tests!A:E,5,FALSE) -> Hanford | C3: 10373 | D3: CB1302 | E3: 1A | F3: Sulfur Dioxide | G3: 0.02737536946 | H3: lb/MMBtu | I3: 0.2881072234 | J3: lb/MW | K3: Part II | L3: No | M3: 2006 Emission Compliance and RATA Report\06015.4c | N3: =+VLOOKUP(C3&"_"&D3,Min_Tests!A:B,2,FALSE) -> 1
A4: 10373_CB1302 | B4: =VLOOKUP(A4,Min_Tests!A:E,5,FALSE) -> Hanford | C4: 10373 | D4: CB1302 | E4: 1A | F4: Sulfur Dioxide | G4: 0.03193252771 | H4: lb/MMBtu | I4: 0.3019434586 | J4: lb/MW | K4: Part II | L4: No | M4: 2008 Emission Compliance and RATA Report\08015.4c | N4: =+VLOOKUP(C4&"_"&D4,Min_Tests!A:B,2,FALSE) -> 1
A5: 10373_CB1302 | B5: =VLOOKUP(A5,Min_Tests!A:E,5,FALSE) -> Hanford | C5: 10373 | D5: CB1302 | E5: 1A | F5: Sulfur Dioxide | G5: 0.03398092001 | H5: lb/MMBtu | I5: 0.3648540257 | J5: lb/MW | K5: Part II | L5: No | M5: 2005 Emission Compliance and RATA Report\05015.4c | N5: =+VLOOKUP(C5&"_"&D5,Min_Tests!A:B,2,FALSE) -> 1
A6: 10373_CB1302 | B6: =VLOOKUP(A6,Min_Tests!A:E,5,FALSE) -> Hanford | C6: 10373 | D6: CB1302 | E6: 1A | F6: Sulfur Dioxide | G6: 0.05764306547 | H6: lb/MMBtu | I6: 0.5561757612 | J6: lb/MW | K6: ETTS | L6: No | N6: =+VLOOKUP(C6&"_"&D6,Min_Tests!A:B,2,FALSE) -> 1
A7: 10373_CB1302 | B7: =VLOOKUP(A7,Min_Tests!A:E,5,FALSE) -> Hanford | C7: 10373 | D7: CB1302 | E7: 1A | F7: Sulfur Dioxide | G7: 0.05831413126 | H7: lb/MMBtu | I7: 0.6177564296 | J7: lb/MW | K7: Part II | L7: No | M7: 2009 Emission Compliance and RATA Report\09015.4c | N7: =+VLOOKUP(C7&"_"&D7,Min_Tests!A:B,2,FALSE) -> 1
A8: 10373_CB1302 | B8: =VLOOKUP(A8,Min_Tests!A:E,5,FALSE) -> Hanford | C8: 10373 | D8: CB1302 | E8: 1A | F8: Sulfur Dioxide | G8: 0.05893333333 | H8: lb/MMBtu | I8: 0.631584134 | J8: lb/MW | K8: CEMS | L8: No | N8: =+VLOOKUP(C8&"_"&D8,Min_Tests!A:B,2,FALSE) -> 1 | U8: emission_value_lb/MMBtu
A9: 50931_BLR1 | B9: =VLOOKUP(A9,Min_Tests!A:E,5,FALSE) -> Yellowstone Energy LP | C9: 50931 | D9: BLR1 | E9: Config1 | F9: Sulfur Dioxide | G9: 0.0293 | H9: lb/MMBtu | I9: 0.5059133333 | J9: lb/MW | K9: ETTS | L9: No | N9: =+VLOOKUP(C9&"_"&D9,Min_Tests!A:B,2,FALSE) -> 2 | U9: 0.059 | V9: =U9*10.72 -> 0.63248
A10: 50931_BLR1 | B10: =VLOOKUP(A10,Min_Tests!A:E,5,FALSE) -> Yellowstone Energy LP | C10: 50931 | D10: BLR1 | E10: Config1 | F10: Sulfur Dioxide | G10: 0.3923419907 | H10: lb/MMBtu | I10: 6.774438373 | J10: lb/MW | K10: Part II | L10: No | M10: 3/24/08 to 3/26/08 Testing | N10: =+VLOOKUP(C10&"_"&D10,Min_Tests!A:B,2,FALSE) -> 2 | U10: 0.06 | V10: =U10*10.72 -> 0.6432
A11: 50931_BLR1 | B11: =VLOOKUP(A11,Min_Tests!A:E,5,FALSE) -> Yellowstone Energy LP | C11: 50931 | D11: BLR1 | E11: Config1 | F11: Sulfur Dioxide | G11: 0.3938838422 | H11: lb/MMBtu | I11: 6.801061008 | J11: lb/MW | K11: Part II | L11: No | M11: 2/5/07 to 2/7/07 Emission Testing | N11: =+VLOOKUP(C11&"_"&D11,Min_Tests!A:B,2,FALSE) -> 2 | U11: 0.059 | V11: 0.63248
A12: 50931_BLR1 | B12: =VLOOKUP(A12,Min_Tests!A:E,5,FALSE) -> Yellowstone Energy LP | C12: 50931 | D12: BLR1 | E12: Config1 | F12: Sulfur Dioxide | G12: 0.4546434733 | H12: lb/MMBtu | I12: 7.850177305 | J12: lb/MW | K12: Part II | L12: No | M12: 3/16/09 to 3/18/09 testing | N12: =+VLOOKUP(C12&"_"&D12,Min_Tests!A:B,2,FALSE) -> 2 | U12: 0.061 | V12: 0.65392
A13: 50931_BLR1 | B13: =VLOOKUP(A13,Min_Tests!A:E,5,FALSE) -> Yellowstone Energy LP | C13: 50931 | D13: BLR1 | E13: Config1 | F13: Sulfur Dioxide | G13: 0.4605336978 | H13: lb/MMBtu | I13: 7.951881848 | J13: lb/MW | K13: Part II | L13: No | M13: 2/15/05 to 2/17/05 testing | N13: =+VLOOKUP(C13&"_"&D13,Min_Tests!A:B,2,FALSE) -> 2 | U13: 0.06 | V13: 0.6432
A14: 50931_BLR1 | B14: =VLOOKUP(A14,Min_Tests!A:E,5,FALSE) -> Yellowstone Energy LP | C14: 50931 | D14: BLR1 | E14: Config1 | F14: Sulfur Dioxide | G14: 0.4998183928 | H14: lb/MMBtu | I14: 8.630197582 | J14: lb/MW | K14: Part II | L14: No | M14: 2/15/06 to 2/16/06 Emission Testing. | N14: =+VLOOKUP(C14&"_"&D14,Min_Tests!A:B,2,FALSE) -> 2 | U14: 0.059 | V14: 0.63248
A15: 50931_BLR2 | B15: =VLOOKUP(A15,Min_Tests!A:E,5,FALSE) -> Yellowstone Energy LP | C15: 50931 | D15: BLR2 | E15: Config1 | F15: Sulfur Dioxide | G15: 0.0293 | H15: lb/MMBtu | I15: 0.5059133333 | J15: lb/MW | K15: ETTS | L15: No | N15: =+VLOOKUP(C15&"_"&D15,Min_Tests!A:B,2,FALSE) -> 3 | U15: 0.059 | V15: 0.63248
A16: 50931_BLR2 | B16: =VLOOKUP(A16,Min_Tests!A:E,5,FALSE) -> Yellowstone Energy LP | C16: 50931 | D16: BLR2 | E16: Config1 | F16: Sulfur Dioxide | G16: 0.3923419907 | H16: lb/MMBtu | I16: 6.774438373 | J16: lb/MW | K16: Part II | L16: No | M16: 3/24/08 to 3/26/08 Testing | N16: =+VLOOKUP(C16&"_"&D16,Min_Tests!A:B,2,FALSE) -> 3 | U16: 0.06 | V16: 0.6432
A17: 50931_BLR2 | B17: =VLOOKUP(A17,Min_Tests!A:E,5,FALSE) -> Yellowstone Energy LP | C17: 50931 | D17: BLR2 | E17: Config1 | F17: Sulfur Dioxide | G17: 0.3938838422 | H17: lb/MMBtu | I17: 6.801061008 | J17: lb/MW | K17: Part II | L17: No | M17: 2/5/07 to 2/7/07 Emission Testing | N17: =+VLOOKUP(C17&"_"&D17,Min_Tests!A:B,2,FALSE) -> 3 | U17: 0.06 | V17: 0.6432
A18: 50931_BLR2 | B18: =VLOOKUP(A18,Min_Tests!A:E,5,FALSE) -> Yellowstone Energy LP | C18: 50931 | D18: BLR2 | E18: Config1 | F18: Sulfur Dioxide | G18: 0.4546434733 | H18: lb/MMBtu | I18: 7.850177305 | J18: lb/MW | K18: Part II | L18: No | M18: 3/16/09 to 3/18/09 testing | N18: =+VLOOKUP(C18&"_"&D18,Min_Tests!A:B,2,FALSE) -> 3 | U18: 0.059 | V18: 0.63248
A19: 50931_BLR2 | B19: =VLOOKUP(A19,Min_Tests!A:E,5,FALSE) -> Yellowstone Energy LP | C19: 50931 | D19: BLR2 | E19: Config1 | F19: Sulfur Dioxide | G19: 0.4605336978 | H19: lb/MMBtu | I19: 7.951881848 | J19: lb/MW | K19: Part II | L19: No | M19: 2/15/05 to 2/17/05 testing | N19: =+VLOOKUP(C19&"_"&D19,Min_Tests!A:B,2,FALSE) -> 3 | U19: 0.059 | V19: 0.63248
A20: 50931_BLR2 | B20: =VLOOKUP(A20,Min_Tests!A:E,5,FALSE) -> Yellowstone Energy LP | C20: 50931 | D20: BLR2 | E20: Config1 | F20: Sulfur Dioxide | G20: 0.4998183928 | H20: lb/MMBtu | I20: 8.630197582 | J20: lb/MW | K20: Part II | L20: No | M20: 2/15/06 to 2/16/06 Emission Testing. | N20: =+VLOOKUP(C20&"_"&D20,Min_Tests!A:B,2,FALSE) -> 3 | U20: 0.06 | V20: 0.6432
A21: 667_1A | B21: =VLOOKUP(A21,Min_Tests!A:E,5,FALSE) -> Northside Generating Station | C21: 667 | D21: 1A | E21: 1A | F21: Sulfur Dioxide | G21: 0.1514391165 | H21: lb/MMBtu | I21: 1.350250703 | J21: lb/MW | K21: ERT | L21: No | N21: =+VLOOKUP(C21&"_"&D21,Min_Tests!A:B,2,FALSE) -> 4 | U21: 0.059 | V21: 0.63248
A22: 667_1A | B22: =VLOOKUP(A22,Min_Tests!A:E,5,FALSE) -> Northside Generating Station | C22: 667 | D22: 1A | E22: 1A | F22: Sulfur Dioxide | G22: 0.1521333333 | H22: lb/MMBtu | I22: 1.35644043 | J22: lb/MW | K22: CEMS | L22: No | N22: =+VLOOKUP(C22&"_"&D22,Min_Tests!A:B,2,FALSE) -> 4 | U22: 0.06 | V22: 0.6432
A23: 667_2A | B23: =VLOOKUP(A23,Min_Tests!A:E,5,FALSE) -> Northside Generating Station | C23: 667 | D23: 2A | E23: 2A | F23: Sulfur Dioxide | G23: 0.1712988713 | H23: lb/MMBtu | I23: 1.52732284 | J23: lb/MW | K23: ERT | L23: No | N23: =+VLOOKUP(C23&"_"&D23,Min_Tests!A:B,2,FALSE) -> 5 | U23: 0.058 | V23: 0.62176
A24: 667_2A | B24: =VLOOKUP(A24,Min_Tests!A:E,5,FALSE) -> Northside Generating Station | C24: 667 | D24: 2A | E24: 2A | F24: Sulfur Dioxide | G24: 0.1724 | H24: lb/MMBtu | I24: 1.537140645 | J24: lb/MW | K24: CEMS | L24: No | N24: =+VLOOKUP(C24&"_"&D24,Min_Tests!A:B,2,FALSE) -> 5 | U24: 0.056 | V24: 0.60032
A25: 2878_1 | B25: =VLOOKUP(A25,Min_Tests!A:E,5,FALSE) -> Bay Shore | C25: 2878 | D25: 1 | E25: Unit 1 | F25: Sulfur Dioxide | G25: 0.3772214667 | H25: lb/MMBtu | I25: 3.042753288 | J25: lb/MW | K25: ERT | L25: No | N25: =+VLOOKUP(C25&"_"&D25,Min_Tests!A:B,2,FALSE) -> 6 | U25: 0.06 | V25: 0.6432
A26: 4125_9 | B26: =VLOOKUP(A26,Min_Tests!A:E,5,FALSE) -> Manitowoc | C26: 4125 | D26: 9 | E26: B-09 | F26: Sulfur Dioxide | G26: 0.2724293274 | H26: lb/MMBtu | I26: 5.347989322 | J26: lb/MW | K26: ERT | L26: No | N26: =+VLOOKUP(C26&"_"&D26,Min_Tests!A:B,2,FALSE) -> 7 | U26: 0.059 | V26: 0.63248
A27: 10670_AAB001 | B27: =VLOOKUP(A27,Min_Tests!A:E,5,FALSE) -> AES Deepwater | C27: 10670 | D27: AAB001 | E27: Deepwater | F27: Sulfur Dioxide | G27: 0.6047826087 | H27: lb/MMBtu | I27: 6.957296643 | J27: lb/MW | K27: CEMS | L27: No | N27: =+VLOOKUP(C27&"_"&D27,Min_Tests!A:B,2,FALSE) -> 8 | U27: 0.059 | V27: 0.63248
U28: 0.059 | V28: 0.63248
U29: 0.06 | V29: 0.6432
U30: 0.06 | V30: 0.6432
U31: 0.06 | V31: 0.6432
U32: 0.057 | V32: 0.61104
U33: 0.06 | V33: 0.6432
U34: 0.055 | V34: 0.5896
U35: 0.06 | V35: 0.6432
U36: 0.059 | V36: 0.63248
U37: 0.058 | V37: 0.62176
U38: 0.054 | V38: 0.57888
U39: =AVERAGE(U9:U38) -> 0.05893333333 | V39: 0.6317653333

Sheet QA_Calcs
I1: Anthracite | K1: Anthracite | N1: fPM | O1: 30B | Q1: μg/dscm | R1: No | T1: μg/dscm | U1: =1/453592370 -> 2.204622622e-09 | V1: lbs/μg | W1: 0.02831684659 | AA1: cm/cf | AG1: lb/hr | AJ1: lb/MMBtu | AR1: Round to | AV1: From | AX1: original database export===>
I2: Bituminous | K2: Bituminous | N2: Se | O2: M5 | Q2: lb/dscf | R2: Yes | T2: ppm | U2: =U1/1000 -> 2.204622622e-12 | V2: lb/mg | AJ2: lb/MWh | AR2: Same | AV2: Min | AX2: original database export===>
I3: Lignite | K3: Lignite | N3: Pb | O3: M5B | Q3: ppm | V3: lb/scf | AR3: Sig Figs | AV3: Test | AX3: original database export===>
I4: Oil | K4: Oil | N4: Hg | O4: M29 | Q4: ppm @ 3% O2 | V4: (lb/scf)/(ppm SO2) | AR4: as Submitted | AV4: Sheet | AX4: original database export===>
I5: Pet Coke | K5: Pet Coke | N5: HCl | O5: OTM27 | Q5: ppm @ 7% O2 | AR5: prior to | AX5: original database export===>
I6: Subbituminous | K6: Sub Bituminous | N6: SO2 | O6: 26A | AR6: Calc % Diff. | AX6: original database export===>
O7: M6C | AX7: original database export===>
O8: SCAQMD 6.1 | AX8: original database export===>
A9: RTI | G9: As Submitted | U9: RTI-QA | AC9: As Submitted | AM9: RTI-QA | AU9: Final for UPL | AW9: Final for UPL | AX9: original database export===>
A10: Comments | C10: Use Run in UPL Calc? | D10: Grade | E10: Key | F10: Facility_Name | G10: Facility_ID | H10: Boiler_ID | I10: Fuel1 Used | J10: Fuel1 Fraction | K10: Fuel2 Used | L10: Fuel2 Fraction | M10: "Fuel Used/Fraction" Data Source | N10: Pollutant | O10: Reference Method | P10: Concentration | Q10: Concentration UOM | R10: Non-Detect? | S10: MDL | T10: MDL UOM | U10: HAP Conversion Value to lbs | V10: HAP Conversion UOM | W10: Volume Conversion Value to cubic feet | X10: Reserve | Y10: Reserve | Z10: Reserve | AA10: Volume Conversion UOM | AB10: Submitted F Factor | AC10: Bws (percent) | AD10: %O2d | AE10: %CO2d | AF10: Emission Rate Value | AG10: Emission Rate UOM | AH10: Emission Rate MDL | AI10: Emission Factor Value | AJ10: Emission Factor UOM | AK10: MWg During Test | AM10: Fd | AN10: Fw | AO10: Fc | AP10: Calculated conc lb/dscf | AQ10: 19-1 lb/MMBtu | AR10: %diff 19-1 | AS10: 19-6 (CO2) lb/MMBtu | AT10: %diff 19-6 | AU10: lb/MMBtu Value Used for UPL Calcs | AV10: Unit Heat Rate (MMBtu/MWh) | AW10: lb/MWh Value Used in UPL Calcs | AX10: original database export===> | AY10: Key | AZ10: RTI Calculated QA lb/MMBtu | BA10: Run Grade | BB10: Submitted Value | BC10: Submitted Value UOM | BD10: Use ? | BE10: Comment | BF10: facility_id | BG10: configuration_id | BH10: report_id | BI10: sampling_port_id | BJ10: order | BK10: pollutant_id | BL10: pollutant_name | BM10: run_id | BN10: start_datetime | BO10: end_datetime | BP10: unit_load | BQ10: fuel_flow_rate | BR10: fuel_heating_value | BS10: fg_moisture_content | BT10: fg_oxygen_content | BU10: fg_CO2_content | BV10: fg_temperature | BW10: test_method | BX10: conc | BY10: conc_units | BZ10: conc_ND | CA10: conc_MDL | CB10: conc2 | CC10: conc2_units | CD10: emission_rate | CE10: emission_rate_units | CF10: emission_rate_ND | CG10: emission_rate_MDL | CH10: Calculated lb/MWh at Prom | CI10: Boiler Heat Rate (lb/MMBtu)/MWh | CJ10: Calculated lb/MMBtu at Prom | CK10: Calculated conc lb/dscf | CL10: 19-1 lb/MMBtu | CM10: %diff | CN10: 19-6 lb/MMBtu | CO10: %diff | CP10: emission_factor | CQ10: emission_factor_units | CR10: emission_factor_ND | CS10: emission_factor_MDL | CT10: run_pollutant_comment | CU10: Fuel1 | CV10: Fuel1%Btu | CW10: Fuel2 | CX10: Fuel2%Btu | CY10: QA Comment | DK10: average of runs
C11: Yes | D11: A | E11: 5_SO2_T2_R1 | F11: Hanford | G11: 10373 | H11: 1A | I11: Pet Coke | J11: 100 | M11: Part II | N11: SO2 | O11: SCAQMD 6.1 | P11: =BX11 -> 17.68 | Q11: ppm @ 3% O2 | R11: No | U11: =$D$87 -> 1.66e-07 | V11: (lb/scf)/(ppm SO2) | AB11: 9844 | AC11: =BS11 -> 0 | AD11: =BT11 -> 4.58 | AE11: =BU11 -> 14.6 | AF11: =CD11 -> 9.91 | AG11: lb/hr | AI11: =AF11/AK11 -> 0.359057971 | AJ11: lb/MWh | AK11: =BP11 -> 27.6 | AM11: =VLOOKUP(I11,$A$88:$E$104,3,FALSE) -> 9830 | AO11: =VLOOKUP(I11,$A$87:$E$104,5,FALSE) -> 1850 | AP11: =P11*U11 -> 2.93488e-06 | AQ11: =IF(AD11<>"",AP11*AB11*20.9/(20.9-3),"no O2 data for run") -> 0.03373301884 | AR11: =(AW11-$AI11)/$AI11 -> 0.00684088355 | AU11: =AQ11 -> 0.03373301884 | AV11: 10.71692535 | AW11: =AU11*AV11 -> 0.3615142448 | AX11: original database export===> | AY11: 5_SO2_T2_R1 | AZ11: 0.03378784699 | BA11: A | BB11: 9.91 | BC11: pound per hour (lb/hr) | BD11: Yes | BF11: 10373 | BG11: 1A | BH11: 2005 Emission Compliance and RATA Report\05015.4c | BI11: Stack | BJ11: 3 | BK11: 6 | BL11: Sulfur Dioxide (SO2) | BM11: 4 | BN11: 2005-12-08T17:33:00 | BO11: 2005-12-08T18:33:00 | BP11: 27.6 | BQ11: 20892 | BR11: 13664 | BT11: 4.58 | BU11: 14.6 | BV11: 295.4 | BW11: EPA 7E California South Coast AQMD 6.1 (non-isokinetic) for SOx | BX11: 17.68 | BY11: parts per million by volume (dry) (ppmvd @ 3% O2) | BZ11: FALSE | CD11: 9.91 | CE11: pound per hour (lb/hr) | CF11: FALSE | CR11: FALSE | DK11: =AVERAGE(AW11:AW13) -> 0.3648540257
C12: Yes | D12: A | E12: 5_SO2_T2_R2 | F12: Hanford | G12: 10373 | H12: 1A | I12: Pet Coke | J12: 100 | M12: Part II | N12: SO2 | O12: SCAQMD 6.2 | P12: =BX12 -> 18 | Q12: ppm @ 3% O2 | R12: No | U12: 1.66e-07 | V12: (lb/scf)/(ppm SO2) | AB12: 9844 | AC12: =BS12 -> 0 | AD12: 4.57 | AE12: 14.72 | AF12: =CD12 -> 10.13 | AG12: lb/hr | AI12: =AF12/AK12 -> 0.3670289855 | AJ12: lb/MWh | AK12: =BP12 -> 27.6 | AM12: =VLOOKUP(I12,$A$88:$E$104,3,FALSE) -> 9830 | AO12: =VLOOKUP(I12,$A$87:$E$104,5,FALSE) -> 1850 | AP12: 2.988e-06 | AQ12: =IF(AD12<>"",AP12*AB12*20.9/(20.9-3),"no O2 data for run") -> 0.03434357122 | AR12: =(AW12-$AI12)/$AI12 -> 0.002802240598 | AU12: =AQ12 -> 0.03434357122 | AV12: 10.71692535 | AW12: =AU12*AV12 -> 0.368057489 | AX12: original database export===> | AY12: 5_SO2_T2_R2 | AZ12: 0.03439939173 | BA12: A | BB12: 10.13 | BC12: pound per hour (lb/hr) | BD12: Yes | BF12: 10373 | BG12: 1A | BH12: 2005 Emission Compliance and RATA Report\05015.4c | BI12: Stack | BJ12: 3 | BK12: 6 | BL12: Sulfur Dioxide (SO2) | BM12: 5 | BN12: 2005-12-08T18:52:00 | BO12: 2005-12-08T19:52:00 | BP12: 27.6 | BQ12: 20832 | BR12: 13664 | BT12: 4.57 | BU12: 14.72 | BV12: 295.5 | BW12: EPA 7E California South Coast AQMD 6.1 (non-isokinetic) for SOx | BX12: 18 | BY12: parts per million by volume (dry) (ppmvd @ 3% O2) | BZ12: FALSE | CD12: 10.13 | CE12: pound per hour (lb/hr) | CF12: FALSE | CR12: FALSE
C13: Yes | D13: A | E13: 5_SO2_T2_R3 | F13: Hanford | G13: 10373 | H13: 1A | I13: Pet Coke | J13: 100 | M13: Part II | N13: SO2 | O13: SCAQMD 6.3 | P13: 17.85 | Q13: ppm @ 3% O2 | R13: No | U13: 1.66e-07 | V13: (lb/scf)/(ppm SO2) | AB13: 9844 | AC13: 0 | AD13: 4.41 | AE13: 14.78 | AF13: 10.15 | AG13: lb/hr | AI13: 0.3664259928 | AJ13: lb/MWh | AK13: 27.7 | AM13: 9830 | AO13: 1850 | AP13: 2.9631e-06 | AQ13: 0.03405737479 | AR13: -0.003917979398 | AU13: 0.03405737479 | AV13: 10.71692535 | AW13: 0.3649903433 | AX13: original database export===> | AY13: 5_SO2_T2_R3 | AZ13: 0.03411273013 | BA13: A | BB13: 10.15 | BC13: pound per hour (lb/hr) | BD13: Yes | BF13: 10373 | BG13: 1A | BH13: 2005 Emission Compliance and RATA Report\05015.4c | BI13: Stack | BJ13: 3 | BK13: 6 | BL13: Sulfur Dioxide (SO2) | BM13: 6 | BN13: 2005-12-08T20:09:00 | BO13: 2005-12-08T21:09:00 | BP13: 27.7 | BQ13: 20892 | BR13: 13664 | BT13: 4.41 | BU13: 14.78 | BV13: 295.5 | BW13: EPA 7E California South Coast AQMD 6.1 (non-isokinetic) for SOx | BX13: 17.85 | BY13: parts per million by volume (dry) (ppmvd @ 3% O2) | BZ13: FALSE | CD13: 10.15 | CE13: pound per hour (lb/hr) | CF13: FALSE | CR13: FALSE
C14: Yes | D14: A | E14: 5_SO2_T3_R1 | F14: Hanford | G14: 10373 | H14: 1A | I14: Pet Coke | J14: 100 | M14: Part II | N14: SO2 | O14: SCAQMD 6.4 | P14: 15.2 | Q14: ppm @ 3% O2 | R14: No | U14: 1.66e-07 | V14: (lb/scf)/(ppm SO2) | AB14: 9844 | AC14: 9.24 | AD14: 5.13 | AE14: 14.35 | AF14: 9.11 | AG14: lb/hr | AI14: 0.3174216028 | AJ14: lb/MWh | AK14: 28.7 | AM14: 9830 | AO14: 1850 | AP14: 2.5232e-06 | AQ14: 0.02900123792 | AR14: -0.02084767036 | AU14: 0.02900123792 | AV14: 10.71692535 | AW14: 0.3108041018 | AX14: original database export===> | AY14: 5_SO2_T3_R1 | AZ14: 0.02904837524 | BA14: A | BB14: 9.11 | BC14: pound per hour (lb/hr) | BD14: Yes | BF14: 10373 | BG14: 1A | BH14: 2006 Emission Compliance and RATA Report\06015.4c | BI14: Stack | BJ14: 3 | BK14: 6 | BL14: Sulfur Dioxide (SO2) | BM14: 4 | BN14: 2006-12-19T14:05:00 | BO14: 2006-12-19T15:11:00 | BP14: 28.7 | BQ14: 21660 | BR14: 14145 | BS14: 9.24 | BT14: 5.13 | BU14: 14.35 | BW14: EPA 7E California South Coast AQMD 6.1 (non-isokinetic) for SOx | BX14: 15.2 | BY14: parts per million by volume (dry) (ppmvd @ 3% O2) | BZ14: FALSE | CD14: 9.11 | CE14: pound per hour (lb/hr) | CF14: FALSE | CR14: FALSE | DK14: =AVERAGE(AW14:AW16) -> 0.2881072234
C15: Yes | D15: A | E15: 5_SO2_T3_R2 | F15: Hanford | G15: 10373 | H15: 1A | I15: Pet Coke | J15: 100 | M15: Part II | N15: SO2 | O15: SCAQMD 6.5 | P15: 13.91 | Q15: ppm @ 3% O2 | R15: No | U15: 1.66e-07 | V15: (lb/scf)/(ppm SO2) | AB15: 9844 | AC15: 9.116 | AD15: 5.22 | AE15: 14.35 | AF15: 8.3 | AG15: lb/hr | AI15: 0.2891986063 | AJ15: lb/MWh | AK15: 28.7 | AM15: 9830 | AO15: 1850 | AP15: 2.30906e-06 | AQ15: 0.02653994865 | AR15: -0.01650062518 | AU15: 0.02653994865 | AV15: 10.71692535 | AW15: 0.2844266485 | AX15: original database export===> | AY15: 5_SO2_T3_R2 | AZ15: 0.0265830855 | BA15: A | BB15: 8.3 | BC15: pound per hour (lb/hr) | BD15: Yes | BF15: 10373 | BG15: 1A | BH15: 2006 Emission Compliance and RATA Report\06015.4c | BI15: Stack | BJ15: 3 | BK15: 6 | BL15: Sulfur Dioxide (SO2) | BM15: 5 | BN15: 2006-12-19T15:23:00 | BO15: 2006-12-19T16:23:00 | BP15: 28.7 | BQ15: 21665 | BR15: 14145 | BS15: 9.116 | BT15: 5.22 | BU15: 14.35 | BW15: EPA 7E California South Coast AQMD 6.1 (non-isokinetic) for SOx | BX15: 13.91 | BY15: parts per million by volume (dry) (ppmvd @ 3% O2) | BZ15: FALSE | CD15: 8.3 | CE15: pound per hour (lb/hr) | CF15: FALSE | CR15: FALSE
C16: Yes | D16: A | E16: 5_SO2_T3_R3 | F16: Hanford | G16: 10373 | H16: 1A | I16: Pet Coke | J16: 100 | M16: Part II | N16: SO2 | O16: SCAQMD 6.6 | P16: 13.16 | Q16: ppm @ 3% O2 | R16: No | U16: 1.66e-07 | V16: (lb/scf)/(ppm SO2) | AB16: 9844 | AC16: 8.92 | AD16: 5.26 | AE16: 14.26 | AF16: 7.85 | AG16: lb/hr | AI16: 0.2735191638 | AJ16: lb/MWh | AK16: 28.7 | AM16: 9830 | AO16: 1850 | AP16: 2.18456e-06 | AQ16: 0.02510896651 | AR16: -0.01618988572 | AU16: 0.02510896651 | AV16: 10.71692535 | AW16: 0.2690909198 | AX16: original database export===> | AY16: 5_SO2_T3_R3 | AZ16: 0.02514977751 | BA16: A | BB16: 7.85 | BC16: pound per hour (lb/hr) | BD16: Yes | BF16: 10373 | BG16: 1A | BH16: 2006 Emission Compliance and RATA Report\06015.4c | BI16: Stack | BJ16: 3 | BK16: 6 | BL16: Sulfur Dioxide (SO2) | BM16: 6 | BN16: 2006-12-19T16:34:00 | BO16: 2006-12-19T17:34:00 | BP16: 28.7 | BQ16: 21666 | BR16: 14145 | BS16: 8.92 | BT16: 5.26 | BU16: 14.26 | BW16: EPA 7E California South Coast AQMD 6.1 (non-isokinetic) for SOx | BX16: 13.16 | BY16: parts per million by volume (dry) (ppmvd @ 3% O2) | BZ16: FALSE | CD16: 7.85 | CE16: pound per hour (lb/hr) | CF16: FALSE | CR16: FALSE
C17: Yes | D17: B | E17: 5_SO2_T4_R1 | F17: Hanford | G17: 10373 | H17: 1A | I17: Pet Coke | J17: 100 | M17: Part II | N17: SO2 | O17: SCAQMD 6.7 | P17: 12.87 | Q17: ppm @ 3% O2 | R17: No | U17: 1.66e-07 | V17: (lb/scf)/(ppm SO2) | AB17: 9844 | AC17: 7.556 | AD17: 5.2 | AE17: 14.25 | AF17: 6.82 | AG17: lb/hr | AI17: 0.2427046263 | AJ17: lb/MWh | AK17: 28.1 | AM17: 9830 | AO17: 1850 | AP17: 2.13642e-06 | AQ17: 0.02455565342 | AR17: 0.08428548986 | AU17: 0.02455565342 | AV17: 10.71692535 | AW17: 0.2631611047 | AX17: original database export===> | AY17: 5_SO2_T4_R1 | AZ17: 0.02459556509 | BA17: B | BB17: 6.82 | BC17: pound per hour (lb/hr) | BD17: Yes | BF17: 10373 | BG17: 1A | BH17: 2007 Emission Compliance and RATA Report\07015.4c | BI17: Stack | BJ17: 3 | BK17: 6 | BL17: Sulfur Dioxide (SO2) | BM17: 7 | BN17: 2007-11-27T13:01:00 | BO17: 2007-11-27T14:05:00 | BP17: 28.1 | BQ17: 21076 | BR17: 14211 | BS17: 7.556 | BT17: 5.2 | BU17: 14.25 | BW17: EPA 7E California South Coast AQMD 6.1 (non-isokinetic) for SOx | BX17: 12.87 | BY17: parts per million by volume (dry) (ppmvd @ 3% O2) | BZ17: FALSE | CD17: 6.82 | CE17: pound per hour (lb/hr) | CF17: FALSE | CR17: FALSE | DK17: =AVERAGE(AW17:AW19) -> 0.2677959027
C18: Yes | D18: B | E18: 5_SO2_T4_R2 | F18: Hanford | G18: 10373 | H18: 1A | I18: Pet Coke | J18: 100 | M18: Part II | N18: SO2 | O18: SCAQMD 6.8 | P18: 12.17 | Q18: ppm @ 3% O2 | R18: No | U18: 1.66e-07 | V18: (lb/scf)/(ppm SO2) | AB18: 9844 | AC18: 7.61 | AD18: 5.21 | AE18: 13.93 | AF18: 6.416 | AG18: lb/hr | AI18: 0.2275177305 | AJ18: lb/MWh | AK18: 28.2 | AM18: 9830 | AO18: 1850 | AP18: 2.02022e-06 | AQ18: 0.0232200701 | AR18: 0.09375105544 | AU18: 0.0232200701 | AV18: 10.71692535 | AW18: 0.2488477579 | AX18: original database export===> | AY18: 5_SO2_T4_R2 | AZ18: 0.02325781097 | BA18: B | BB18: 6.416 | BC18: pound per hour (lb/hr) | BD18: Yes | BF18: 10373 | BG18: 1A | BH18: 2007 Emission Compliance and RATA Report\07015.4c | BI18: Stack | BJ18: 3 | BK18: 6 | BL18: Sulfur Dioxide (SO2) | BM18: 8 | BN18: 2007-11-27T14:20:00 | BO18: 2007-11-27T15:20:00 | BP18: 28.2 | BQ18: 21086 | BR18: 14211 | BS18: 7.61 | BT18: 5.21 | BU18: 13.93 | BW18: EPA 7E California South Coast AQMD 6.1 (non-isokinetic) for SOx | BX18: 12.17 | BY18: parts per million by volume (dry) (ppmvd @ 3% O2) | BZ18: FALSE | CD18: 6.416 | CE18: pound per hour (lb/hr) | CF18: FALSE | CR18: FALSE
C19: Yes | D19: B | E19: 5_SO2_T4_R3 | F19: Hanford | G19: 10373 | H19: 1A | I19: Pet Coke | J19: 100 | M19: Part II | N19: SO2 | O19: SCAQMD 6.9 | P19: 14.25 | Q19: ppm @ 3% O2 | R19: No | U19: 1.66e-07 | V19: (lb/scf)/(ppm SO2) | AB19: 9844 | AC19: 7.26 | AD19: 5.09 | AE19: 13.93 | AF19: 7.606 | AG19: lb/hr | AI19: 0.2678169014 | AJ19: lb/MWh | AK19: 28.4 | AM19: 9830 | AO19: 1850 | AP19: 2.3655e-06 | AQ19: 0.02718866055 | AR19: 0.08797780854 | AU19: 0.02718866055 | AV19: 10.71692535 | AW19: 0.2913788455 | AX19: original database export===> | AY19: 5_SO2_T4_R3 | AZ19: 0.02723285179 | BA19: B | BB19: 7.606 | BC19: pound per hour (lb/hr) | BD19: Yes | BF19: 10373 | BG19: 1A | BH19: 2007 Emission Compliance and RATA Report\07015.4c | BI19: Stack | BJ19: 3 | BK19: 6 | BL19: Sulfur Dioxide (SO2) | BM19: 9 | BN19: 2007-11-27T15:33:00 | BO19: 2007-11-27T16:33:00 | BP19: 28.4 | BQ19: 21240 | BR19: 14211 | BS19: 7.26 | BT19: 5.09 | BU19: 13.93 | BW19: EPA 7E California South Coast AQMD 6.1 (non-isokinetic) for SOx | BX19: 14.25 | BY19: parts per million by volume (dry) (ppmvd @ 3% O2) | BZ19: FALSE | CD19: 7.606 | CE19: pound per hour (lb/hr) | CF19: FALSE | CR19: FALSE
C20: Yes | D20: B | E20: 5_SO2_T5_R1 | F20: Hanford | G20: 10373 | H20: 1A | I20: Pet Coke | J20: 100 | M20: Part II | N20: SO2 | O20: SCAQMD 6.10 | P20: 12.8 | Q20: ppm @ 3% O2 | R20: No | U20: 1.66e-07 | V20: (lb/scf)/(ppm SO2) | AB20: 9844 | AC20: 10.71 | AD20: 3.87 | AE20: 15.33 | AF20: 8.43 | AG20: lb/hr | AI20: 0.2968309859 | AJ20: lb/MWh | AK20: 28.4 | AM20: 9830 | AO20: 1850 | AP20: 2.1248e-06 | AQ20: 0.02442209509 | AR20: -0.1182532067 | AU20: 0.02442209509 | AV20: 10.71692535 | AW20: 0.26172977 | AX20: original database export===> | AY20: 5_SO2_T5_R1 | AZ20: 0.02446178968 | BA20: A | BB20: 8.43 | BC20: pound per hour (lb/hr) | BD20: Yes | BF20: 10373 | BG20: 1A | BH20: 2008 Emission Compliance and RATA Report\08015.4c | BI20: Stack | BJ20: 3 | BK20: 6 | BL20: Sulfur Dioxide (SO2) | BM20: 4 | BN20: 2008-11-20T09:05:00 | BO20: 2008-11-20T10:05:00 | BP20: 28.4 | BQ20: 20241 | BR20: 13690 | BS20: 10.71 | BT20: 3.87 | BU20: 15.33 | BW20: EPA 7E California South Coast AQMD 6.1 (non-isokinetic) for SOx | BX20: 12.8 | BY20: parts per million by volume (dry) (ppmvd @ 3% O2) | BZ20: FALSE | CD20: 8.43 | CE20: pound per hour (lb/hr) | CF20: FALSE | CR20: FALSE | DK20: =AVERAGE(AW20:AW22) -> 0.3019434586
C21: Yes | D21: B | E21: 5_SO2_T5_R2 | F21: Hanford | G21: 10373 | H21: 1A | I21: Pet Coke | J21: 100 | M21: Part II | N21: SO2 | O21: SCAQMD 6.11 | P21: 16.1 | Q21: ppm @ 3% O2 | R21: No | U21: 1.66e-07 | V21: (lb/scf)/(ppm SO2) | AB21: 9844 | AC21: 10.63 | AD21: 3.67 | AE21: 15.54 | AF21: 10.73 | AG21: lb/hr | AI21: 0.3764912281 | AJ21: lb/MWh | AK21: 28.5 | AM21: 9830 | AO21: 1850 | AP21: 2.6726e-06 | AQ21: 0.03071841648 | AR21: -0.1255919082 | AU21: 0.03071841648 | AV21: 10.71692535 | AW21: 0.3292069763 | AX21: original database export===> | AY21: 5_SO2_T5_R2 | AZ21: 0.03076834483 | BA21: B | BB21: 10.73 | BC21: pound per hour (lb/hr) | BD21: Yes | BF21: 10373 | BG21: 1A | BH21: 2008 Emission Compliance and RATA Report\08015.4c | BI21: Stack | BJ21: 3 | BK21: 6 | BL21: Sulfur Dioxide (SO2) | BM21: 5 | BN21: 2008-01-20T10:19:00 | BO21: 2008-01-20T11:19:00 | BP21: 28.5 | BQ21: 20391 | BR21: 13690 | BS21: 10.63 | BT21: 3.67 | BU21: 15.54 | BW21: EPA 7E California South Coast AQMD 6.1 (non-isokinetic) for SOx | BX21: 16.1 | BY21: parts per million by volume (dry) (ppmvd @ 3% O2) | BZ21: FALSE | CD21: 10.73 | CE21: pound per hour (lb/hr) | CF21: FALSE | CR21: FALSE
C22: Yes | D22: B | E22: 5_SO2_T5_R3 | F22: Hanford | G22: 10373 | H22: 1A | I22: Pet Coke | J22: 100 | M22: Part II | N22: SO2 | O22: SCAQMD 6.12 | P22: 15.4 | Q22: ppm @ 3% O2 | R22: No | U22: 1.66e-07 | V22: (lb/scf)/(ppm SO2) | AB22: 9844 | AC22: 11 | AD22: 3.9 | AE22: 15.22 | AF22: 10.07 | AG22: lb/hr | AI22: 0.3533333333 | AJ22: lb/MWh | AK22: 28.5 | AM22: 9830 | AO22: 1850 | AP22: 2.5564e-06 | AQ22: 0.02938283315 | AR22: -0.1087916146 | AU22: 0.02938283315 | AV22: 10.71692535 | AW22: 0.3148936295 | AX22: original database export===> | AY22: 5_SO2_T5_R3 | AZ22: 0.0294305907 | BA22: A | BB22: 10.07 | BC22: pound per hour (lb/hr) | BD22: Yes | BF22: 10373 | BG22: 1A | BH22: 2008 Emission Compliance and RATA Report\08015.4c | BI22: Stack | BJ22: 3 | BK22: 6 | BL22: Sulfur Dioxide (SO2) | BM22: 6 | BN22: 2008-01-20T11:28:00 | BO22: 2008-01-20T12:28:00 | BP22: 28.5 | BQ22: 20295 | BR22: 13690 | BS22: 11 | BT22: 3.9 | BU22: 15.22 | BW22: EPA 7E California South Coast AQMD 6.1 (non-isokinetic) for SOx | BX22: 15.4 | BY22: parts per million by volume (dry) (ppmvd @ 3% O2) | BZ22: FALSE | CD22: 10.07 | CE22: pound per hour (lb/hr) | CF22: FALSE | CR22: FALSE
C23: Yes | D23: B | E23: 5_SO2_T6_R1 | F23: Hanford | G23: 10373 | H23: 1A | I23: Pet Coke | J23: 100 | M23: Part II | N23: SO2 | O23: SCAQMD 6.13 | P23: 29.2 | Q23: ppm @ 3% O2 | R23: No | U23: 1.66e-07 | V23: (lb/scf)/(ppm SO2) | AB23: 9844 | AC23: 11.4 | AD23: 4.3 | AE23: 14.95 | AF23: 18.43 | AG23: lb/hr | AI23: 0.6775735294 | AJ23: lb/MWh | AK23: 27.2 | AM23: 9830 | AO23: 1850 | AP23: 4.8472e-06 | AQ23: 0.05571290442 | AR23: -0.1188099714 | AU23: 0.05571290442 | AV23: 10.71692535 | AW23: 0.5970710378 | AX23: original database export===> | AY23: 5_SO2_T6_R1 | AZ23: 0.0558034577 | BA23: A | BB23: 18.43 | BC23: pound per hour (lb/hr) | BD23: Yes | BF23: 10373 | BG23: 1A | BH23: 2009 Emission Compliance and RATA Report\09015.4c | BI23: Stack | BJ23: 3 | BK23: 6 | BL23: Sulfur Dioxide (SO2) | BM23: 4 | BN23: 2009-12-10T08:04:00 | BO23: 2009-12-10T09:04:00 | BP23: 27.2 | BQ23: 20094 | BR23: 13970 | BS23: 11.4 | BT23: 4.3 | BU23: 14.95 | BW23: EPA 7E California South Coast AQMD 6.1 (non-isokinetic) for SOx | BX23: 29.2 | BY23: parts per million by volume (dry) (ppmvd @ 3% O2) | BZ23: FALSE | CD23: 18.43 | CE23: pound per hour (lb/hr) | CF23: FALSE | CR23: FALSE | DK23: =AVERAGE(AW23:AW25) -> 0.5561757612
C24: Yes | D24: B | E24: 5_SO2_T6_R2 | F24: Hanford | G24: 10373 | H24: 1A | I24: Pet Coke | J24: 100 | M24: Part II | N24: SO2 | O24: SCAQMD 6.14 | P24: 26.2 | Q24: ppm @ 3% O2 | R24: No | U24: 1.66e-07 | V24: (lb/scf)/(ppm SO2) | AB24: 9844 | AC24: 11.32 | AD24: 4.04 | AE24: 15.28 | AF24: 16.7 | AG24: lb/hr | AI24: 0.5921985816 | AJ24: lb/MWh | AK24: 28.2 | AM24: 9830 | AO24: 1850 | AP24: 4.3492e-06 | AQ24: 0.04998897588 | AR24: -0.09535730141 | AU24: 0.04998897588 | AV24: 10.71692535 | AW24: 0.5357281229 | AX24: original database export===> | AY24: 5_SO2_T6_R2 | AZ24: 0.05007022574 | BA24: A | BB24: 16.7 | BC24: pound per hour (lb/hr) | BD24: Yes | BF24: 10373 | BG24: 1A | BH24: 2009 Emission Compliance and RATA Report\09015.4c | BI24: Stack | BJ24: 3 | BK24: 6 | BL24: Sulfur Dioxide (SO2) | BM24: 5 | BN24: 2009-12-10T09:21:00 | BO24: 2009-12-10T10:21:00 | BP24: 28.2 | BQ24: 20386 | BR24: 13970 | BS24: 11.32 | BT24: 4.04 | BU24: 15.28 | BW24: EPA 7E California South Coast AQMD 6.1 (non-isokinetic) for SOx | BX24: 26.2 | BY24: parts per million by volume (dry) (ppmvd @ 3% O2) | BZ24: FALSE | CD24: 16.7 | CE24: pound per hour (lb/hr) | CF24: FALSE | CR24: FALSE
C25: Yes | D25: B | E25: 5_SO2_T6_R3 | F25: Hanford | G25: 10373 | H25: 1A | I25: Pet Coke | J25: 100 | M25: Part II | N25: SO2 | O25: SCAQMD 6.15 | P25: 26.2 | Q25: ppm @ 3% O2 | R25: No | U25: 1.66e-07 | V25: (lb/scf)/(ppm SO2) | AB25: 9844 | AC25: 12.26 | AD25: 4.11 | AE25: 15.17 | AF25: 16.7 | AG25: lb/hr | AI25: 0.6050724638 | AJ25: lb/MWh | AK25: 27.6 | AM25: 9830 | AO25: 1850 | AP25: 4.3492e-06 | AQ25: 0.04998897588 | AR25: -0.1146050184 | AU25: 0.04998897588 | AV25: 10.71692535 | AW25: 0.5357281229 | AX25: original database export===> | AY25: 5_SO2_T6_R3 | AZ25: 0.05007022574 | BA25: A | BB25: 16.7 | BC25: pound per hour (lb/hr) | BD25: Yes | BF25: 10373 | BG25: 1A | BH25: 2009 Emission Compliance and RATA Report\09015.4c | BI25: Stack | BJ25: 3 | BK25: 6 | BL25: Sulfur Dioxide (SO2) | BM25: 6 | BN25: 2009-02-10T10:37:00 | BO25: 2009-02-10T11:37:00 | BP25: 27.6 | BQ25: 20112 | BR25: 13970 | BS25: 12.26 | BT25: 4.11 | BU25: 15.17 | BW25: EPA 7E California South Coast AQMD 6.1 (non-isokinetic) for SOx | BX25: 26.2 | BY25: parts per million by volume (dry) (ppmvd @ 3% O2) | BZ25: FALSE | CD25: 16.7 | CE25: pound per hour (lb/hr) | CF25: FALSE | CR25: FALSE
A26: Row for Part III Data Heading from Raw Part III Data Export to Excel | G26: Row for Part III Data Heading from Raw Part III Data Export to Excel | O26: Row for Part III Data Heading from Raw Part III Data Export to Excel | V26: Row for Part III Data Heading from Raw Part III Data Export to Excel | AF26: Row for Part III Data Heading from Raw Part III Data Export to Excel | AO26: Row for Part III Data Heading from Raw Part III Data Export to Excel | AX26: original database export===> | AY26: Key | AZ26: RTI Calculated QA lb/MMBtu | BA26: Run Grade | BB26: Submitted Value | BC26: Submitted Value UOM | BD26: Use ? | BE26: Comment | BF26: facility_id | BG26: configuration_id | BH26: submittal_id | BI26: pollutant | BJ26: run_number | BK26: start_date | BL26: end_date | BM26: measured_value_ppm | BN26: measured_value_NO | BO26: measured_value_NO2 | BP26: measured_TDS | BQ26: measured_TSS | BR26: basis | BS26: test_method | BT26: data_flag | BU26: method_comments | BV26: emission_rate | BW26: emission_rate_ppmdv | BX26: steam_output | BY26: heat_input | BZ26: fg_moisture_content | CA26: fg_CO2_content | CB26: fg_oxygen_content | CC26: 19-1 | CD26: 19-5 | CE26: 19-6 | CF26: 19-9 | CG26: 19-1 | CH26: 19-5 | CI26: 19-6 | CJ26: 19-9 | CK26: 19-1 | CL26: 19-5 | CM26: 19-6 | CN26: 19-9 | CO26: fg_flow_rate | CP26: fg_temperature | CQ26: fuel1_input_rate | CR26: fuel1_type | CS26: fuel1_rate_units | CT26: fuel1_method | CU26: fuel2_input_rate | CV26: fuel2_type | CW26: fuel2_rate_units | CX26: fuel2_method | CY26: fuel3_input_rate | CZ26: fuel3_type | DA26: fuel3_rate_units | DB26: fuel3_method | DC26: fuel4_input_rate | DD26: fuel4_type | DE26: fuel4_rate_units | DF26: fuel4_method | DG26: other_information | DH26: exclude_data | DI26: QA Comment | DJ26: Questions for EPA
F27: Hanford | H27: 1A | I27: Pet Coke | O27: SCAQMD 6.17 | AV27: 10.71692535 | AX27: original database export===> | CC27: using ppmdv; column R | CG27: using ppm ; column H | CK27: using ppm ; column H
C28: Yes | D28: A | E28: 5_SO2_T1_R1 | F28: Hanford | G28: 10373 | H28: 1A | I28: Pet Coke | J28: 100 | M28: ETTS Other | N28: SO2 | P28: =BM28 -> 29.61 | Q28: ppm | U28: 1.66e-07 | V28: lb/scf | AB28: 9844 | AC28: =BZ28 -> 13.1 | AD28: =CB28 -> 3.8 | AE28: =CA28 -> 15.5 | AI28: =BV28 -> 0.05958660397 | AJ28: lb/MMBtu | AM28: =VLOOKUP(I28,$A$88:$E$104,3,FALSE) -> 9830 | AO28: 1850 | AP28: =P28*U28 -> 4.91526e-06 | AQ28: =IF(AD28<>"",AP28*AB28*20.9/(20.9-AD28),"no O2 data for run") -> 0.05913822376 | AR28: =(AQ28-$AI28)/$AI28 -> -0.007524849213 | AS28: =IF(AE28<>"",AP28*AO28*100/AE28,"no CO2 data for run") -> 0.05866600645 | AT28: =(AS28-$AI28)/$AI28 -> -0.01544973966 | AU28: =AI28 -> 0.05958660397 | AV28: 10.71692535 | AW28: =AU28*AV28 -> 0.6385851867 | AX28: original database export===> | AY28: 5_SO2_T1_R1 | AZ28: 0.05921698928 | BA28: A | BB28: 0.05958660397 | BC28: lb/MMBtu | BD28: Yes | BF28: 10373 | BG28: 1A | BH28: 1265 | BI28: SO2 | BJ28: 1 | BK28: 2010-05-18 | BL28: 2010-05-18 | BM28: 29.61 | BR28: Dry | BU28: Plant Monitor | BV28: 0.05958660397 | BW28: 24.25 | BX28: 218.82 | BY28: 277 | BZ28: 13.1 | CA28: 15.5 | CB28: 3.8 | CC28: 0.04849753428 | CD28: 0.04214435729 | CE28: 0.04960454839 | CF28: 0.04310635255 | CG28: 0.0590541182 | CH28: 0.05131802872 | CI28: 0.05866600645 | CK28: 0.05921698928 | CL28: 0.05145956369 | CM28: 0.06056868774 | CN28: 0.05263418965 | CO28: 68553 | CP28: 343 | CQ28: NA | CR28: petroleum coke | CS28: MMBtu/hr | CT28: F-Factor | DH28: FALSE | DK28: =AVERAGE(AW28:AW31) -> 0.6177564296
C29: Yes | D29: A | E29: 5_SO2_T1_R2 | F29: Hanford | G29: 10373 | H29: 1A | I29: Pet Coke | J29: 100 | M29: ETTS Other | N29: SO2 | P29: =BM29 -> 29.38 | Q29: ppm | U29: 1.66e-07 | V29: lb/scf | AB29: 9844 | AC29: =BZ29 -> 12.2 | AD29: =CB29 -> 3.8 | AE29: =CA29 -> 15.9 | AI29: =BV29 -> 0.05910643563 | AJ29: lb/MMBtu | AM29: 9830 | AO29: 1850 | AP29: 4.87708e-06 | AQ29: =IF(AD29<>"",AP29*AB29*20.9/(20.9-AD29),"no O2 data for run") -> 0.05867885897 | AR29: =(AQ29-$AI29)/$AI29 -> -0.007234012008 | AS29: 0.05674589937 | AT29: -0.03993704302 | AU29: =AI29 -> 0.05910643563 | AV29: 10.71692535 | AW29: 0.6334392585 | AX29: original database export===> | AY29: 5_SO2_T1_R2 | AZ29: 0.05875701267 | BA29: A | BB29: 0.05910643563 | BC29: lb/MMBtu | BD29: Yes | BF29: 10373 | BG29: 1A | BH29: 1265 | BI29: SO2 | BJ29: 2 | BK29: 2010-05-19 | BL29: 2010-05-19 | BM29: 29.38 | BR29: Dry | BU29: Plant Monitor | BV29: 0.05910643563 | BW29: 24.05 | BX29: 223.54 | BY29: 279.1 | BZ29: 12.2 | CA29: 15.9 | CB29: 3.8 | CC29: 4.879477778e-06 | CD29: 0.04222965296 | CE29: 0.04795781761 | CF29: 0.04210696386 | CG29: 0.05859540671 | CH29: 0.05144676709 | CI29: 0.05674589937 | CK29: 0.05875701267 | CL29: 0.05158865712 | CM29: 0.05858630692 | CN29: 0.05143877747 | CO29: 66623 | CP29: 341 | CQ29: NA | CR29: petroleum coke | CS29: MMBtu/hr | CT29: F-Factor | DH29: FALSE
C30: Yes | D30: A | E30: 5_SO2_T1_R3 | F30: Hanford | G30: 10373 | H30: 1A | I30: Pet Coke | J30: 100 | M30: ETTS Other | N30: SO2 | P30: 28.7 | Q30: ppm | U30: 1.66e-07 | V30: lb/scf | AB30: 9844 | AC30: 12 | AD30: 3.9 | AE30: 15.8 | AI30: 0.05775739126 | AJ30: lb/MMBtu | AM30: 9830 | AO30: 1850 | AP30: 4.7642e-06 | AQ30: 0.05765791778 | AR30: -0.001722264048 | AS30: 0.05578335443 | AT30: -0.0341780816 | AU30: 0.05775739126 | AV30: 10.71692535 | AW30: 0.6189816506 | AX30: original database export===> | AY30: 5_SO2_T1_R3 | AZ30: 0.05773471171 | BA30: A | BB30: 0.05775739126 | BC30: lb/MMBtu | BD30: Yes | BF30: 10373 | BG30: 1A | BH30: 1265 | BI30: SO2 | BJ30: 3 | BK30: 2010-05-20 | BL30: 2010-05-20 | BM30: 28.7 | BR30: Dry | BU30: Plant Monitor | BV30: 0.05775739126 | BW30: 23.5 | BX30: 221.24 | BY30: 275 | BZ30: 12 | CA30: 15.8 | CB30: 3.9 | CC30: 4.795935294e-06 | CD30: 0.04160117903 | CE30: 0.04715765823 | CF30: 0.04149873924 | CG30: 0.05757591749 | CH30: 0.05066680739 | CI30: 0.05578335443 | CK30: 0.05773471171 | CL30: 0.0508065463 | CM30: 0.0575925443 | CN30: 0.05068143899 | CO30: 67896 | CP30: 344 | CQ30: NA | CR30: petroleum coke | CS30: MMBtu/hr | CT30: F-Factor | DH30: FALSE
C31: Yes | D31: A | E31: 5_SO2_T1_R4 | F31: Hanford | G31: 10373 | H31: 1A | I31: Pet Coke | J31: 100 | M31: ETTS Other | N31: SO2 | P31: 26.9 | Q31: ppm | U31: 1.66e-07 | V31: lb/scf | AB31: 9844 | AC31: 11.7 | AD31: 3.9 | AE31: 15.7 | AI31: 0.054121831 | AJ31: lb/MMBtu | AM31: 9830 | AO31: 1850 | AP31: 4.4654e-06 | AQ31: 0.05404174176 | AR31: -0.001479795624 | AS31: 0.0526177707 | AT31: -0.02779027013 | AU31: 0.054121831 | AV31: 10.71692535 | AW31: 0.5800196227 | AX31: original database export===> | AY31: 5_SO2_T1_R4 | AZ31: 0.05411371933 | BA31: A | BB31: 0.054121831 | BC31: lb/MMBtu | BD31: Yes | BF31: 10373 | BG31: 1A | BH31: 1265 | BI31: SO2 | BJ31: 4 | BK31: 2010-05-21 | BL31: 2010-05-21 | BM31: 26.9 | BR31: Dry | BU31: Plant Monitor | BV31: 0.054121831 | BW31: 22.02 | BX31: 220.29 | BY31: 273.6 | BZ31: 11.7 | CA31: 15.7 | CB31: 3.9 | CC31: 4.493893412e-06 | CD31: 0.0391140803 | CE31: 0.04446917962 | CF31: 0.0392662856 | CG31: 0.05396488434 | CH31: 0.04765099287 | CI31: 0.0526177707 | CK31: 0.05411371933 | CL31: 0.04778241417 | CM31: 0.05432429299 | CN31: 0.04796835071 | CO31: 68376 | CP31: 343 | CQ31: NA | CR31: petroleum coke | CS31: MMBtu/hr | CT31: F-Factor | DH31: FALSE
AV34: 5_SO2_T4 | AW34: 0.2674150471
AV35: 5_SO2_T3 | AW35: 0.2876974813
AV36: 5_SO2_T5 | AW36: 0.3015140388
AV37: 5_SO2_T2 | AW37: 0.3643351354
AV38: 5_SO2_T6 | AW38: 0.5553847758
AV39: 5_SO2_T1 | AW39: 0.6177564296
A86: Conversions
A87: 1 | C87: ppm SO2= | D87: 1.66e-07 | E87: lb/scf
A88: 1 | C88: ppm Hg= | D88: =D87*A93/A94 -> 5.197930066e-07 | E88: lb/scf
A89: 1000 | C89: mg= | D89: 1 | E89: g
A90: 1000000 | C90: ug= | D90: 1 | E90: g
A91: 454 | C91: g= | D91: 1 | E91: lb
A92: 1 | C92: m^3= | D92: 35.3145 | E92: ft^3
A93: 200.59 | C93: Hg molecular weight
A94: 64.06 | C94: SO2 molecular weight
A96: Table 19-2 | C96: Fd | D96: Fw | E96: Fc
A97: Fuel Type | C97: dscf/MMBtu | D97: wscf/MMBtu | E97: scf/MMBtu
A98: Coal
A99: Anthracite | C99: 10100 | D99: 10540 | E99: 1970
A100: Bituminous | C100: 9780 | D100: 10640 | E100: 1800
A101: Lignite | C101: 9860 | D101: 11950 | E101: 1910
A102: Oil | C102: 9190 | D102: 10320 | E102: 1420
A103: Subbituminous | C103: 9820 | E103: 1840
A104: Pet Coke | C104: 9830 | E104: 1850
A197: 1 | B197: 2 | C197: 3 | D197: 4 | E197: 5 | F197: 6 | G197: 7 | H197: 8 | I197: 9 | J197: 10 | K197: 11 | L197: 12 | M197: 13 | N197: 14 | O197: 15 | P197: 16 | Q197: 17 | R197: 18 | S197: 19 | T197: 20 | U197: 21 | V197: 22 | W197: 23 | X197: 24 | Y197: 25 | Z197: 26 | AA197: 27 | AB197: 28 | AC197: 29 | AD197: 30 | AE197: 31 | AF197: 32 | AG197: 33 | AH197: 34 | AI197: 35 | AJ197: 36 | AK197: 37 | AL197: 38 | AM197: 39 | AN197: 40 | AO197: 41 | AP197: 42 | AQ197: 43 | AR197: 44 | AS197: 45 | AT197: 46 | AU197: 47
B199: Column Source==> | C199: 45 | D199: 45 | E199: 45 | F199: 45 | G199: 45 | H199: 45 | I199: 45 | J199: 45 | K199: 45 | L199: 44
B200: Test Avgs for UPL | C200: R1 | D200: R2 | E200: R3 | F200: R4 | G200: R5 | H200: R6 | I200: R7 | J200: R8 | K200: R9 | L200: R10
A201: Test_IDs | B201: lb/MW | C201: lb/MW | D201: lb/MW | E201: lb/MW | F201: lb/MW | G201: lb/MW | H201: lb/MW | I201: lb/MW | J201: lb/MW | K201: lb/MW | L201: lb/MW | M201: Test_IDs
A202: 5_SO2_T4 | B202: =AVERAGE(C202:L202) -> 0.2677959027 | C202: =IFERROR(VLOOKUP($A202&"_"&C$200,$E:DU,C$199,FALSE),"") -> 0.2631611047 | D202: =IFERROR(VLOOKUP($A202&"_"&D$200,$E:DV,D$199,FALSE),"") -> 0.2488477579 | E202: =IFERROR(VLOOKUP($A202&"_"&E$200,$E:DW,E$199,FALSE),"") -> 0.2913788455 | F202: =IFERROR(VLOOKUP($A202&"_"&F$200,$E:DX,F$199,FALSE),"") ->  | G202: =IFERROR(VLOOKUP($A202&"_"&G$200,$E:DY,G$199,FALSE),"") ->  | H202: =IFERROR(VLOOKUP($A202&"_"&H$200,$E:DZ,H$199,FALSE),"") ->  | I202: =IFERROR(VLOOKUP($A202&"_"&I$200,$E:EA,I$199,FALSE),"") ->  | J202: =IFERROR(VLOOKUP(#REF!&"_"&J$200,$E:BB,J$199,FALSE),"") ->  | K202: =IFERROR(VLOOKUP(#REF!&"_"&K$200,$E:BC,K$199,FALSE),"") ->  | M202: =A202 -> 5_SO2_T4
A203: 5_SO2_T3 | B203: 0.2881072234 | C203: =IFERROR(VLOOKUP($A203&"_"&C$200,$E:DU,C$199,FALSE),"") -> 0.3108041018 | D203: =IFERROR(VLOOKUP($A203&"_"&D$200,$E:DV,D$199,FALSE),"") -> 0.2844266485 | E203: =IFERROR(VLOOKUP($A203&"_"&E$200,$E:DW,E$199,FALSE),"") -> 0.2690909198 | F203: =IFERROR(VLOOKUP($A203&"_"&F$200,$E:DX,F$199,FALSE),"") ->  | G203: =IFERROR(VLOOKUP($A203&"_"&G$200,$E:DY,G$199,FALSE),"") ->  | H203: =IFERROR(VLOOKUP($A203&"_"&H$200,$E:DZ,H$199,FALSE),"") ->  | I203: =IFERROR(VLOOKUP($A203&"_"&I$200,$E:EA,I$199,FALSE),"") ->  | J203: =IFERROR(VLOOKUP(#REF!&"_"&J$200,$E:BB,J$199,FALSE),"") ->  | K203: =IFERROR(VLOOKUP(#REF!&"_"&K$200,$E:BC,K$199,FALSE),"") ->  | M203: 5_SO2_T3
A204: 5_SO2_T5 | B204: 0.3019434586 | C204: =IFERROR(VLOOKUP($A204&"_"&C$200,$E:DU,C$199,FALSE),"") -> 0.26172977 | D204: =IFERROR(VLOOKUP($A204&"_"&D$200,$E:DV,D$199,FALSE),"") -> 0.3292069763 | E204: =IFERROR(VLOOKUP($A204&"_"&E$200,$E:DW,E$199,FALSE),"") -> 0.3148936295 | F204: =IFERROR(VLOOKUP($A204&"_"&F$200,$E:DX,F$199,FALSE),"") ->  | G204: =IFERROR(VLOOKUP($A204&"_"&G$200,$E:DY,G$199,FALSE),"") ->  | H204: =IFERROR(VLOOKUP($A204&"_"&H$200,$E:DZ,H$199,FALSE),"") ->  | I204: =IFERROR(VLOOKUP($A204&"_"&I$200,$E:EA,I$199,FALSE),"") ->  | M204: 5_SO2_T5
A205: 5_SO2_T2 | B205: 0.3648540257 | C205: =IFERROR(VLOOKUP($A205&"_"&C$200,$E:DU,C$199,FALSE),"") -> 0.3615142448 | D205: =IFERROR(VLOOKUP($A205&"_"&D$200,$E:DV,D$199,FALSE),"") -> 0.368057489 | E205: =IFERROR(VLOOKUP($A205&"_"&E$200,$E:DW,E$199,FALSE),"") -> 0.3649903433 | F205: =IFERROR(VLOOKUP($A205&"_"&F$200,$E:DX,F$199,FALSE),"") ->  | G205: =IFERROR(VLOOKUP($A205&"_"&G$200,$E:DY,G$199,FALSE),"") ->  | H205: =IFERROR(VLOOKUP($A205&"_"&H$200,$E:DZ,H$199,FALSE),"") ->  | I205: =IFERROR(VLOOKUP($A205&"_"&I$200,$E:EA,I$199,FALSE),"") ->  | J205: =IFERROR(VLOOKUP($A205&"_"&J$200,$E:EB,J$199,FALSE),"") ->  | K205: =IFERROR(VLOOKUP($A205&"_"&K$200,$E:EC,K$199,FALSE),"") ->  | M205: 5_SO2_T2
A206: 5_SO2_T6 | B206: 0.5561757612 | C206: =IFERROR(VLOOKUP($A206&"_"&C$200,$E:DU,C$199,FALSE),"") -> 0.5970710378 | D206: =IFERROR(VLOOKUP($A206&"_"&D$200,$E:DV,D$199,FALSE),"") -> 0.5357281229 | E206: =IFERROR(VLOOKUP($A206&"_"&E$200,$E:DW,E$199,FALSE),"") -> 0.5357281229 | F206: =IFERROR(VLOOKUP($A206&"_"&F$200,$E:DX,F$199,FALSE),"") ->  | G206: =IFERROR(VLOOKUP($A206&"_"&G$200,$E:DY,G$199,FALSE),"") ->  | H206: =IFERROR(VLOOKUP($A206&"_"&H$200,$E:DZ,H$199,FALSE),"") ->  | I206: =IFERROR(VLOOKUP($A206&"_"&I$200,$E:EA,I$199,FALSE),"") ->  | M206: 5_SO2_T6
A207: 5_SO2_T1 | B207: 0.6177564296 | C207: =IFERROR(VLOOKUP($A207&"_"&C$200,$E:DU,C$199,FALSE),"") -> 0.6385851867 | D207: =IFERROR(VLOOKUP($A207&"_"&D$200,$E:DV,D$199,FALSE),"") -> 0.6334392585 | E207: =IFERROR(VLOOKUP($A207&"_"&E$200,$E:DW,E$199,FALSE),"") -> 0.6189816506 | F207: =IFERROR(VLOOKUP($A207&"_"&F$200,$E:DX,F$199,FALSE),"") -> 0.5800196227 | G207: =IFERROR(VLOOKUP($A207&"_"&G$200,$E:DY,G$199,FALSE),"") ->  | H207: =IFERROR(VLOOKUP($A207&"_"&H$200,$E:DZ,H$199,FALSE),"") ->  | I207: =IFERROR(VLOOKUP($A207&"_"&I$200,$E:EA,I$199,FALSE),"") ->  | M207: 5_SO2_T1
C209: 31 | D209: 31 | E209: 31 | F209: 31 | G209: 31 | H209: 31 | I209: 31 | J209: 31 | K209: 31
A211: Using Actual O2
A212: 5_SO2_T4 | B212: =AVERAGE(C212:L212) -> 0.2427046263 | C212: =IFERROR(VLOOKUP($A212&"_"&C$200,$E:DU,C$209,FALSE),"") -> 0.2427046263 | F212: =IFERROR(VLOOKUP($A212&"_"&F$200,$E:DX,F$209,FALSE),"") ->  | G212: =IFERROR(VLOOKUP($A212&"_"&G$200,$E:DY,G$209,FALSE),"") ->  | H212: =IFERROR(VLOOKUP($A212&"_"&H$200,$E:DZ,H$209,FALSE),"") ->  | I212: =IFERROR(VLOOKUP($A212&"_"&I$200,$E:EA,I$209,FALSE),"") ->  | J212: =IFERROR(VLOOKUP($A212&"_"&J$200,$E:EB,J$209,FALSE),"") ->  | K212: =IFERROR(VLOOKUP($A212&"_"&K$200,$E:EC,K$209,FALSE)*$AV$11,"") ->  | M212: =A212 -> 5_SO2_T4
A213: 5_SO2_T3
A214: 5_SO2_T5
A215: 5_SO2_T2
A216: 5_SO2_T6
A217: 5_SO2_T1

Sheet UPL Normal
A1: Emissions (lb/MW) | B1: SO2
B2: 10373
A3: ORIS/Facility/Unit | B3: Hanford
A4: Averages | B4: 1A
A5: 1 | B5: 0.2677959027
A6: 2 | B6: 0.2881072234
A7: 3 | B7: 0.3019434586
A8: 4 | B8: 0.3648540257
A9: 5 | B9: 0.5561757612
A10: 6 | B10: 0.6177564296
A11: CEMS Value omitted; dissimilar data.
A12: 8
A13: 9
A14: 10
A15: 11
A16: 12
A17: 13
A18: 14
A19: 15
A20: 16
A21: 17
A22: 18
A23: 19
A24: 20
A25: 21
A26: 22
A27: 23
A28: 24
A29: 25
A30: 26
A31: 27
A32: 28
A33: 29
A34: 30
A35: 31
A36: 32
A37: 33
A38: 34
A39: 35
A41: ni = number test Averages = | B41: =COUNT(B5:B39) -> 6
A45: Total Number of sources = | C45: =COUNTA(B2:Q2) -> 1
A48: n =Total # test Averages = | C48: =SUM(B41:B41) -> 6
C53: =C48-1 -> 5
A58: This step is for QC only:
A60: means | B60: =AVERAGE(B5:B39) -> 0.3994388002
C67: =AVERAGE(B5:B39) -> 0.3994388002
A68: UPL Mean =
A72: Pooled Variance = | C72: =VAR(B5:H39) -> 0.0225310166
A78: m= number future Averages = | C78: 1
A81: Term1 | C81: =1/C48+1/C78 -> 1.166666667
A85: Term2 | C85: =C72*C81 -> 0.02628618603
A91: Squared root Term2 | C91: =SQRT(C85) -> 0.1621301515
A94: NOTE: the pvalue for the t-statistic is calculated as: 2*alpha, where 1-alpha is desired confidence, so if 99% confidence is desired then alpha=0.01 and 2*alpha=2*(0.01)
A97: t-statistic | B97: = quantile t-distribution with df degrees of freedom at .99 confidence level = | C97: =TINV(2*0.01,C53) -> 3.364929999
A100: UPL POOLED VARIANCE = | C100: =C67+C97*C91 -> 0.9449954108 | D100: =IFERROR(IF(FIND("MM",A$1,1)>0,"lb/MMBtu","lb/MW"),"lb/MW") -> lb/MW | E100: =C100*1000 -> 944.9954108 | F100: lb/GWhr
B105: Normal UPL | C105: ='UPL Pooled Template '!F107 -> 0.9449954108 | D105: lb/MW
B106: Lognormal UPL | C106: ='Lognormal Template'!D165 -> 0.9609251385 | D106: lb/MW
B108: Final UPL | C108: =C106 -> 0.9609251385 | D108: lb/MW

Sheet UPL Pooled Template
A1: ='UPL Normal'!B1 -> SO2 | B1: Emissions (lb/MW)
A2: Averages | B2: 10373 Hanford 1A
A3: 1 | B3: 0.2677959027
A4: 2 | B4: 0.2881072234
A5: 3 | B5: 0.3019434586
A6: 4 | B6: 0.3648540257
A7: 5 | B7: 0.5561757612
A8: 6 | B8: 0.6177564296
A9: 7
A10: 8
A11: 9
A12: 10
A13: 11
A14: 12
A15: 13
A16: 14
A17: 15
A18: 16
A19: 17
A20: 18
A21: 19
A22: 20
A23: 21
A24: 22
A25: 23
A26: 24
A27: 25
A28: 26
A29: 27
A30: 28
A31: 29
A32: 30
A33: 31
A34: 32
A35: 33
A36: 34
A37: 35
A38: Use for large sample sets and small sample sets that are Normal.
A40: Testing Normality | B40: Raw Data
A41: Sample Size | B41: =COUNT(B3:L37) -> 6
A42: Kurtosis | B42: =KURT(B3:L37) -> -1.532785754
A43: SE Kurtosis | B43: =SQRT((B41^2-1)/((B41-3)*(B41+5))) -> 1.029857301
A44: Result Kurtosis | B44: =IF(ABS(B42/B43)>NORMSINV(1-0.05/2),"non normal","normal") -> normal
A45: Skewness | B45: =SKEW(B3:L37) -> 0.8539392726
A46: SE Skewness | B46: =SQRT((6*B41*(B41-1))/((B41-2)*(B41+1)*(B41+3))) -> 0.8451542547
A47: Result Skewness | B47: =IF(ABS(B45/B46)>NORMSINV(1-0.05/2),"non normal","normal") -> normal
A50: ni = number test Averages = | B50: =COUNT(B3:B37) -> 6 | C50: 0 | D50: 0 | E50: 0 | F50: 0 | G50: 0 | H50: 0 | I50: 0 | J50: 0 | K50: 0 | L50: 0
A52: Total Number of sources = | B52: =COUNTA(B2:L2) -> 1
A55: n =Total # test Averages = | B55: =SUM(B50:L50) -> 6
B60: =B55-1 -> 5
A65: This step is for QC only:
A67: means | B67: =AVERAGE(B3:B37) -> 0.3994388002
B74: =AVERAGE(B3:L37) -> 0.3994388002
A75: Mean =
A79: Pooled Variance = | D79: =VAR(B3:L37) -> 0.0225310166
A85: m= number future Averages = | B85: ='UPL Normal'!C78 -> 1
A88: Term1 | B88: =1/B55+1/B85 -> 1.166666667
A92: Term2 | B92: =D79*B88 -> 0.02628618603
A98: Squared root Term2 | C98: =SQRT(B92) -> 0.1621301515
A101: NOTE: the pvalue for the t-statistic is calculated as: 2*alpha, where 1-alpha is desired confidence, so if 99% confidence is desired then alpha=0.01 and 2*alpha=2*(0.01)
A104: t-statistic | B104: = quantile t-distribution with df degrees of freedom at .99 confidence level = | H104: =TINV(2*0.01,B60) -> 3.364929999
A107: UPL POOLED VARIANCE = | F107: =B74+H104*C98 -> 0.9449954108

Sheet Lognormal Template
B1: Emissions (lb/MW)
A2: ='UPL Pooled Template '!A1 -> SO2 | B2: 10373 Hanford 1A | M2: Outliers Removed
A3: 1 | B3: 0.2677959027
A4: 2 | B4: 0.2881072234
A5: 3 | B5: 0.3019434586
A6: 4 | B6: 0.3648540257
A7: 5 | B7: 0.5561757612
A8: 6 | B8: 0.6177564296
A9: 7
A10: 8
A11: 9
A12: 10
A13: 11
A14: 12
A15: 13
A16: 14
A17: 15
A18: 16
A19: 17
A20: 18
A21: 19
A22: 20
A23: 21
A24: 22
A25: 23
A26: 24
A27: 25
A28: 26
A29: 27
A30: 28
A31: 29
A32: 30
A33: 31
A34: 32
A35: 33
A36: 34
A37: 35
A38: Use for small sample sets that are Lognormal.
A40: Testing Normality | B40: Raw Data | C40: Log Data
A41: Sample Size | B41: =COUNT(B3:L37) -> 6 | C41: =COUNT(B51:L85) -> 6
A42: Kurtosis | B42: =KURT(B3:L37) -> -1.532785754 | C42: =KURT(B51:L85) -> -1.797869702
A43: SE Kurtosis | B43: =SQRT((B41^2-1)/((B41-3)*(B41+5))) -> 1.029857301 | C43: =SQRT((C41^2-1)/((C41-3)*(C41+5))) -> 1.029857301
A44: Result Kurtosis | B44: =IF(ABS(B42/B43)>NORMSINV(1-0.05/2),"non normal","normal") -> normal | C44: =IF(ABS(C42/C43)>NORMSINV(1-0.05/2),"non normal","normal") -> normal
A45: Skewness | B45: =SKEW(B3:L37) -> 0.8539392726 | C45: =SKEW(B51:L85) -> 0.6859419101
A46: SE Skewness | B46: =SQRT((6*B41*(B41-1))/((B41-2)*(B41+1)*(B41+3))) -> 0.8451542547 | C46: =SQRT((6*C41*(C41-1))/((C41-2)*(C41+1)*(C41+3))) -> 0.8451542547
A47: Result Skewness | B47: =IF(ABS(B45/B46)>NORMSINV(1-0.05/2),"non normal","normal") -> normal | C47: =IF(ABS(C45/C46)>NORMSINV(1-0.05/2),"non normal","normal") -> normal
B49: 1. Take LN( ) of Raw Data
A50: Averages
A51: 1 | B51: =IF(B3>0,LN(B3),"") -> -1.317530146 | C51: =IF(C3>0,LN(C3),"") -> 
A52: 2 | B52: =IF(B4>0,LN(B4),"") -> -1.244422565
A53: 3 | B53: =IF(B5>0,LN(B5),"") -> -1.197515502
A54: 4 | B54: =IF(B6>0,LN(B6),"") -> -1.008257935
A55: 5 | B55: =IF(B7>0,LN(B7),"") -> -0.5866709174
A56: 6 | B56: =IF(B8>0,LN(B8),"") -> -0.481661026
A57: 7 | B57: =IF(B9>0,LN(B9),"") -> 
A58: 8 | B58: =IF(B10>0,LN(B10),"") -> 
A59: 9 | B59: =IF(B11>0,LN(B11),"") -> 
A60: 10 | B60: =IF(B12>0,LN(B12),"") -> 
A61: 11 | B61: =IF(B13>0,LN(B13),"") -> 
A62: 12 | B62: =IF(B14>0,LN(B14),"") -> 
A63: 13 | B63: =IF(B15>0,LN(B15),"") -> 
A64: 14 | B64: =IF(B16>0,LN(B16),"") -> 
A65: 15 | B65: =IF(B17>0,LN(B17),"") -> 
A66: 16 | B66: =IF(B18>0,LN(B18),"") -> 
A67: 17 | B67: =IF(B19>0,LN(B19),"") -> 
A68: 18 | B68: =IF(B20>0,LN(B20),"") -> 
A69: 19 | B69: =IF(B21>0,LN(B21),"") -> 
A70: 20 | B70: =IF(B22>0,LN(B22),"") -> 
A71: 21 | B71: =IF(B23>0,LN(B23),"") -> 
A72: 22 | B72: =IF(B24>0,LN(B24),"") -> 
A73: 23 | B73: =IF(B25>0,LN(B25),"") -> 
A74: 24 | B74: =IF(B26>0,LN(B26),"") -> 
A75: 25 | B75: =IF(B27>0,LN(B27),"") -> 
A76: 26 | B76: =IF(B28>0,LN(B28),"") -> 
A77: 27 | B77: =IF(B29>0,LN(B29),"") -> 
A78: 28 | B78: =IF(B30>0,LN(B30),"") -> 
A79: 29 | B79: =IF(B31>0,LN(B31),"") -> 
A80: 30 | B80: =IF(B32>0,LN(B32),"") -> 
A81: 31 | B81: =IF(B33>0,LN(B33),"") -> 
A82: 32 | B82: =IF(B34>0,LN(B34),"") -> 
A83: 33 | B83: =IF(B35>0,LN(B35),"") -> 
A84: 34 | B84: =IF(B36>0,LN(B36),"") -> 
A85: 35 | B85: =IF(B37>0,LN(B37),"") -> 
A87: 2. Calculate sample size, n= | C87: =COUNT(B51:L85) -> 6
A89: Average of Raw Data | C89: =AVERAGE(B3:L37) -> 0.3994388002
A92: 3. Calculate | D92: =AVERAGE(B51:L85) -> -0.9726763486
E102: =VAR(B51:L85) -> 0.1269370163
A103: 4. Calculate
A108: 5. m | C108: ='UPL Normal'!C78 -> 1
A110: 6. Calculate
A114: a- Numerator first term | F114: =EXP(4*E102)+2*EXP(3*E102)+3*EXP(2*E102)-3 -> 5.45551566
A117: b- denominator first term | F117: =C108*(EXP(E102)-1)^2 -> 0.01831840635
C121: =F114/F117+3*(1-1/C108) -> 297.816063
A124: 7. Calculate
F125: =SQRT(EXP(E102)-1)*(EXP(E102)+2)/SQRT(C108) -> 1.153472721
A128: 8. Go to tab distribution for 99 percentile "lognormal distribution 99%"
A130: 9. substitue the values of | E130: in cell D7 and F7 respectively
A133: 10. In column AE indentify the value that is the smallest value that is larger than 0.99, note what row number this is. | J133: =VLOOKUP("x",'lognormal distribution 99 %'!AF:AL,2,FALSE) -> 93 | K133: is the Row number in Column AE with the first value > 0.99.
A136: 11. In column B, go down to the row number from Step 10. above, and copy the z value. | J136: =INDIRECT("'lognormal distribution 99 %'!B" & J133) -> 3.484 | K136: z value from "lognormal distribution 99%"
A138: 12. calculate the UPL using the formula
A146: a- Calculate | D146: =EXP(D92+E102/2) -> 0.4028432138
A149: b- Calculate | D149: =EXP(2*D92+E102) -> 0.1622826549
A153: c- Calculate | D153: =EXP(E102)-1 -> 0.1353455073
A157: d-calculate | E157: =(E102)/C87+(E102^2)/(2*(C87-1)) -> 0.02276747
A161: e- Calculate | H161: =SQRT(C108*D149*D153+C108^2*D149*E157) -> 0.1601842493
A165: f- Calculate UPL | D165: =D146+(J136/C108)*H161 -> 0.9609251385 | E165: lb/MW
D167: =D165 -> 0.9609251385

Sheet lognormal distribution 99 %
P2: distribution of Z
N3: Normal
N4: distribution
A5: ∆z | B5: z | V5: Absolute values
AD6: Cumulative | AE6: normalization
A7: 0.101 | D7: ='Lognormal Template'!C121 -> 297.816063 | F7: ='Lognormal Template'!F125 -> 1.153472721
B9: -5 | C9: =f(a) | G9: =(1-($F$7/6)*(3*B9-B9^3)+(($D$7-3)*(3-6*B9^2+B9^4))/24) -> 5851.606255 | N9: =NORMDIST(B9,0,1,FALSE) -> 1.486719515e-06 | P9: =G9*N9 -> 0.008699697212 | V9: =ABS(P9) -> 0.008699697212 | Y9: =($A$7/2)*V9 -> 0.0004393347092 | AD9: =Y9 -> 0.0004393347092 | AE9: =AD9/SUM($Y$9:$Y$108) -> 1.274484251e-05 | AF9: =IF(AE9>0.99,"x","") ->  | AG9: 9
A10: 1 | B10: =$B$9+A10*$A$7 -> -4.899 | G10: 5324.866635 | N10: 2.450939756e-06 | P10: 0.01305092733 | V10: 0.01305092733 | Y10: =($A$7)*V10 -> 0.00131814366 | AD10: =Y10+AD9 -> 0.00175747837 | AE10: 5.09834178e-05 | AF10: =IF(AE10>0.99,"x","") ->  | AG10: 10
A11: 2 | B11: -4.798 | G11: 4832.657544 | N11: 3.999502685e-06 | P11: 0.01932822682 | V11: 0.01932822682 | Y11: 0.001952150909 | AD11: 0.003709629279 | AE11: 0.0001076141719 | AG11: 11
A12: 3 | B12: -4.697 | G12: 4373.507441 | N12: 6.460246822e-06 | P12: 0.02825393755 | V12: 0.02825393755 | Y12: 0.002853647692 | AD12: 0.006563276971 | AE12: 0.0001903968195 | AG12: 12
A13: 4 | B13: -4.596 | G13: 3945.975466 | N13: 1.032908833e-05 | P13: 0.04075832915 | V13: 0.04075832915 | Y13: 0.004116591244 | AD13: 0.01067986821 | AE13: 0.0003098167196 | AG13: 13
A14: 5 | B14: -4.495 | G14: 3548.651437 | N14: 1.634724734e-05 | P14: 0.05801068276 | V14: 0.05801068276 | Y14: 0.005859078959 | AD14: 0.01653894717 | AE14: 0.0004797851674 | AG14: 14
A15: 6 | B15: -4.394 | G15: 3180.155848 | N15: 2.560926051e-05 | P15: 0.08144143958 | V15: 0.08144143958 | Y15: 0.008225585397 | AD15: 0.02476453257 | AE15: 0.0007184045804 | AG15: 15
A16: 7 | B16: -4.293 | G16: 2839.139875 | N16: 3.971176632e-05 | P16: 0.1127472593 | V16: 0.1127472593 | Y16: 0.01138747319 | AD16: 0.03615200576 | AE16: 0.001048748506 | AG16: 16
A17: 8 | B17: -4.192 | G17: 2524.285371 | N17: 6.095525222e-05 | P17: 0.1538684515 | V17: 0.1538684515 | Y17: 0.0155407136 | AD17: 0.05169271936 | AE17: 0.001499575502 | AG17: 17
A18: 9 | B18: -4.091 | G18: 2234.304869 | N18: 9.261318561e-05 | P18: 0.2069260915 | V18: 0.2069260915 | Y18: 0.02089953525 | AD18: 0.0725922546 | AE18: 0.002105858774 | AG18: 18
A19: 10 | B19: -3.99 | G19: 1967.941579 | N19: 0.0001392849765 | P19: 0.2741046965 | V19: 0.2741046965 | Y19: 0.02768457434 | AD19: 0.1002768289 | AE19: 0.002908972056 | AG19: 19
A20: 11 | B20: -3.889 | G20: 1723.96939 | N20: 0.0002073506921 | P20: 0.3574662462 | V20: 0.3574662462 | Y20: 0.03610409087 | AD20: 0.1363809198 | AE20: 0.003956330578 | AG20: 20
A21: 12 | B21: -3.788 | G21: 1501.19287 | N21: 0.0003055459036 | P21: 0.4586833321 | V21: 0.4586833321 | Y21: 0.04632701655 | AD21: 0.1827079364 | AE21: 0.005300250185 | AG21: 21
A22: 13 | B22: -3.687 | G22: 1298.447268 | N22: 0.0004456739027 | P22: 0.5786840612 | V22: 0.5786840612 | Y22: 0.05844709018 | AD22: 0.2411550265 | AE22: 0.006995766028 | AG22: 22
A23: 14 | B23: -3.586 | G23: 1114.598506 | N23: 0.0006434691113 | P23: 0.7172097104 | V23: 0.7172097104 | Y23: 0.07243818075 | AD23: 0.3135932073 | AE23: 0.00909715521 | AG23: 23
A24: 15 | B24: -3.485 | G24: 948.5431915 | N24: 0.0009196190652 | P24: 0.8722984031 | V24: 0.8722984031 | Y24: 0.08810213871 | AD24: 0.401695346 | AE24: 0.01165294663 | AG24: 24
A25: 16 | B25: -3.384 | G25: 799.2086054 | N25: 0.001300942167 | P25: 1.039724175 | V25: 1.039724175 | Y25: 0.1050121417 | AD25: 0.5067074877 | AE25: 0.01469928734 | AG25: 25
A26: 17 | B26: -3.283 | G26: 665.5527096 | N26: 0.001821703852 | P26: 1.212439935 | V26: 1.212439935 | Y26: 0.1224564334 | AD26: 0.6291639211 | AE26: 0.01825167673 | AG26: 26
A27: 18 | B27: -3.182 | G27: 546.5641444 | N27: 0.00252503455 | P27: 1.380093348 | V27: 1.380093348 | Y27: 0.1393894282 | AD27: 0.7685533493 | AE27: 0.02229528237 | AG27: 27
A28: 19 | B28: -3.081 | G28: 441.2622285 | N28: 0.003464388873 | P28: 1.528703955 | V28: 1.528703955 | Y28: 0.1543990994 | AD28: 0.9229524487 | AE28: 0.02677430978 | AG28: 28
A29: 20 | B29: -2.98 | G29: 348.6969597 | N29: 0.004704957527 | P29: 1.640604385 | V29: 1.640604385 | Y29: 0.1657010429 | AD29: 1.088653492 | AE29: 0.03158119995 | AG29: 29
A30: 21 | B30: -2.879 | G30: 267.9490139 | N30: 0.006324912786 | P30: 1.694754144 | V30: 1.694754144 | Y30: 0.1711701686 | AD30: 1.25982366 | AE30: 0.03654674625 | AG30: 30
A31: 22 | B31: -2.778 | G31: 198.1297463 | N31: 0.008416337402 | P31: 1.667526794 | V31: 1.667526794 | Y31: 0.1684202062 | AD31: 1.428243866 | AE31: 0.04143251776 | AG31: 31
A32: 23 | B32: -2.677 | G32: 138.3811903 | N32: 0.0110856585 | P32: 1.534046618 | V32: 1.534046618 | Y32: 0.1549387084 | AD32: 1.583182575 | AE32: 0.04592719891 | AG32: 32
A33: 24 | B33: -2.576 | G33: 87.8760581 | N33: 0.01445338648 | P33: 1.27010663 | V33: 1.27010663 | Y33: 0.1282807697 | AD33: 1.711463344 | AE33: 0.04964854888 | AG33: 33
A34: 25 | B34: -2.475 | G34: 45.81774076 | N34: 0.01865294879 | P34: 0.8546359722 | V34: 0.8546359722 | Y34: 0.0863182332 | AD34: 1.797781578 | AE34: 0.05215259025 | AG34: 34
A35: 26 | B35: -2.374 | G35: 11.44030784 | N35: 0.02382841428 | P35: 0.2726043946 | V35: 0.2726043946 | Y35: 0.02753304386 | AD35: 1.825314622 | AE35: 0.05295130772 | AG35: 35
A36: 27 | B36: -2.273 | G36: -15.99149239 | N36: 0.03013093081 | P36: -0.4818385508 | V36: 0.4818385508 | Y36: 0.04866569363 | AD36: 1.873980315 | AE36: 0.05436307098 | AG36: 36
A37: 28 | B37: -2.172 | G37: -37.18223296 | N37: 0.03771374986 | P37: -1.402281433 | V37: 1.402281433 | Y37: 0.1416304247 | AD37: 2.01561074 | AE37: 0.05847168662 | AG37: 37
A38: 29 | B38: -2.071 | G38: -52.80580823 | N38: 0.04672578931 | P38: -2.467393069 | V38: 2.467393069 | Y38: 0.2492067 | AD38: 2.26481744 | AE38: 0.06570102698 | AG38: 38
A39: 30 | B39: -1.97 | G39: -63.50543388 | N39: 0.05730378892 | P39: -3.639101978 | V39: 3.639101978 | Y39: 0.3675492998 | AD39: 2.63236674 | AE39: 0.07636341682 | AG39: 39
A40: 31 | B40: -1.869 | G40: -69.89364693 | N40: 0.06956323853 | P40: -4.862028433 | V40: 4.862028433 | Y40: 0.4910648717 | AD40: 3.123431611 | AE40: 0.09060892104 | AG40: 40
A41: 32 | B41: -1.768 | G41: -72.55230569 | N41: 0.08358839927 | P41: -6.064531096 | V41: 6.064531096 | Y41: 0.6125176407 | AD41: 3.735949252 | AE41: 0.1083776989 | AG41: 41
A42: 33 | B42: -1.667 | G42: -72.03258981 | N42: 0.09942188354 | P42: -7.161615755 | V42: 7.161615755 | Y42: 0.7233231913 | AD42: 4.459272443 | AE42: 0.1293608809 | AG42: 42
A43: 34 | B43: -1.566 | G43: -68.85500028 | N43: 0.1170543955 | P43: -8.059780436 | V43: 8.059780436 | Y43: 0.8140378241 | AD43: 5.273310267 | AE43: 0.1529756412 | AG43: 43
A44: 35 | B44: -1.465 | G44: -63.50935938 | N44: 0.1364153459 | P44: -8.663651228 | V44: 8.663651228 | Y44: 0.8750287741 | AD44: 6.148339042 | AE44: 0.1783597133 | AG44: 44
A45: 36 | B45: -1.364 | G45: -56.45481073 | N45: 0.1573651256 | P45: -8.884018379 | V45: 8.884018379 | Y45: 0.8972858563 | AD45: 7.045624898 | AE45: 0.2043894503 | AG45: 45
A46: 37 | B46: -1.263 | G46: -48.11981927 | N46: 0.1796898386 | P46: -8.646642558 | V46: 8.646642558 | Y46: 0.8733108983 | AD46: 7.918935796 | AE46: 0.2297236878 | AG46: 46
A47: 38 | B47: -1.162 | G47: -38.90217125 | N47: 0.2030992439 | P47: -7.901001568 | V47: 7.901001568 | Y47: 0.7980011583 | AD47: 8.716936954 | AE47: 0.2528732338 | AG47: 47
A48: 39 | B48: -1.061 | G48: -29.16897428 | N48: 0.2272285288 | P48: -6.628023111 | V48: 6.628023111 | Y48: 0.6694303342 | AD48: 9.386367289 | AE48: 0.2722930156 | AG48: 48
A49: 40 | B49: -0.96 | G49: -19.25665724 | N49: 0.2516443411 | P49: -4.845828822 | V49: 4.845828822 | Y49: 0.489428711 | AD49: 9.875796 | AE49: 0.2864910557 | AG49: 49
A50: 41 | B50: -0.859 | G50: -9.470970365 | N50: 0.2758552429 | P50: -2.61261683 | V50: 2.61261683 | Y50: 0.2638742999 | AD50: 10.1396703 | AE50: 0.2941458946 | AG50: 50
A51: 42 | B51: -0.758 | G51: -0.08698521125 | N51: 0.2993264386 | P51: -0.0260369735 | V51: 0.0260369735 | Y51: 0.002629734323 | AD51: 10.14230003 | AE51: 0.2942221816 | AG51: 51
A52: 43 | B52: -0.657 | G52: 8.650905353 | N52: 0.3214982967 | P52: 2.781251336 | V52: 2.781251336 | Y52: 0.280906385 | AD52: 10.42320642 | AE52: 0.3023711113 | AG52: 52
A53: 44 | B53: -0.556 | G53: 16.52898713 | N53: 0.341807853 | P53: 5.649737604 | V53: 5.649737604 | Y53: 0.570623498 | AD53: 10.99382992 | AE53: 0.3189245646 | AG53: 53
A54: 45 | B54: -0.455 | G54: 23.36422461 | N54: 0.3597121923 | P54: 8.404396455 | V54: 8.404396455 | Y54: 0.848844042 | AD54: 11.84267396 | AE54: 0.3435490329 | AG54: 54
A55: 46 | B55: -0.354 | G55: 29.00426095 | N55: 0.3747123803 | P55: 10.86825566 | V55: 10.86825566 | Y55: 1.097693822 | AD55: 12.94036778 | AE55: 0.3753924876 | AG55: 55
A56: 47 | B56: -0.253 | G56: 33.32741798 | N56: 0.3863764857 | P56: 12.87693064 | V56: 12.87693064 | Y56: 1.300569995 | AD56: 14.24093777 | AE56: 0.4131212611 | AG56: 56
A57: 48 | B57: -0.152 | G57: 36.24269623 | N57: 0.3943602161 | P57: 14.29267752 | V57: 14.29267752 | Y57: 1.44356043 | AD57: 15.6844982 | AE57: 0.4549981034 | AG57: 57
A58: 49 | B58: -0.051 | G58: 37.68977489 | N58: 0.3984237932 | P58: 15.01650308 | V58: 15.01650308 | Y58: 1.516666811 | AD58: 17.20116502 | AE58: 0.498995719 | AG58: 58
A59: 50 | B59: 0.05 | G59: 37.63901183 | N59: 0.3984439141 | P59: 14.99703519 | V59: 14.99703519 | Y59: 1.514700555 | AD59: 18.71586557 | AE59: 0.5429362946 | AG59: 59
A60: 51 | B60: 0.151 | G60: 36.09144359 | N60: 0.3944199662 | P60: 14.23518596 | V60: 14.23518596 | Y60: 1.437753782 | AD60: 20.15361935 | AE60: 0.5846446894 | AG60: 60
A61: 52 | B61: 0.252 | G61: 33.07878541 | N61: 0.3864740581 | P61: 12.78409244 | V61: 12.78409244 | Y61: 1.291193336 | AD61: 21.44481269 | AE61: 0.6221014516 | AG61: 61
A62: 53 | B62: 0.353 | G62: 28.6634312 | N62: 0.3748448645 | P62: 10.74433998 | V62: 10.74433998 | Y62: 1.085178338 | AD62: 22.52999103 | AE62: 0.6535818394 | AG62: 62
A63: 54 | B63: 0.454 | G63: 22.93845353 | N63: 0.3598757186 | P63: 8.254992446 | V63: 8.254992446 | Y63: 0.8337542371 | AD63: 23.36374526 | AE63: 0.6777685613 | AG63: 63
A64: 55 | B64: 0.555 | G64: 16.02760366 | N64: 0.34199778 | P64: 5.481404869 | V64: 5.481404869 | Y64: 0.5536218918 | AD64: 23.91736716 | AE64: 0.693828808 | AG64: 64
A65: 56 | B65: 0.656 | G65: 8.08531153 | N65: 0.3217094297 | P65: 2.601120961 | V65: 2.601120961 | Y65: 0.2627132171 | AD65: 24.18008037 | AE65: 0.7014499645 | AG65: 65
A66: 57 | B66: 0.757 | G66: -0.7033142372 | N66: 0.2995532643 | P66: -0.2106800756 | V66: 0.2106800756 | Y66: 0.02127868763 | AD66: 24.20135906 | AE66: 0.7020672468 | AG66: 66
A67: 58 | B67: 0.858 | G67: -10.12248635 | N67: 0.2760921663 | P67: -2.794739185 | V67: 2.794739185 | Y67: 0.2822686577 | AD67: 24.48362772 | AE67: 0.7102556952 | AG67: 67
A68: 59 | B68: 0.959 | G68: -19.92573885 | N68: 0.2518859097 | P68: -5.019012856 | V68: 5.019012856 | Y68: 0.5069202984 | AD68: 24.99054802 | AE68: 0.724961156 | AG68: 68
A69: 60 | B69: 1.06 | G69: -29.83592706 | N69: 0.2274696325 | P69: -6.786767363 | V69: 6.786767363 | Y69: 0.6854635037 | AD69: 25.67601152 | AE69: 0.7448460507 | AG69: 69
A70: 61 | B70: 1.161 | G70: -39.54522769 | N70: 0.2033352807 | P70: -8.040939973 | V70: 8.040939973 | Y70: 0.8121349372 | AD70: 26.48814646 | AE70: 0.7684056094 | AG70: 70
A71: 62 | B71: 1.262 | G71: -48.7151387 | N71: 0.1799168403 | P71: -8.76467383 | V71: 8.76467383 | Y71: 0.8852320568 | AD71: 27.37337851 | AE71: 0.7940856727 | AG71: 71
A72: 63 | B72: 1.363 | G72: -56.97647943 | N72: 0.1575798393 | P72: -8.978344471 | V72: 8.978344471 | Y72: 0.9068127915 | AD72: 28.28019131 | AE72: 0.8203917805 | AG72: 72
A73: 64 | B73: 1.464 | G73: =(1-($F$7/6)*(3*B73-B73^3)+(($D$7-3)*(3-6*B73^2+B73^4))/24) -> -63.92939052 | N73: =NORMDIST(B73,0,1,FALSE) -> 0.1366152725 | P73: =G73*N73 -> -8.733731109 | V73: =ABS(P73) -> 8.733731109 | Y73: 0.882106842 | AD73: 29.16229815 | AE73: =AD73/SUM($Y$9:$Y$108) -> 0.8459811831 | AG73: 73
A74: 65 | B74: =$B$9+A74*$A$7 -> 1.565 | G74: -69.14333392 | N74: 0.1172377877 | P74: -8.106211502 | V74: 8.106211502 | Y74: =($A$7)*V74 -> 0.8187273617 | AD74: =Y74+AD73 -> 29.98102551 | AE74: 0.8697319842 | AF74: =IF(AE74>0.99,"x","") ->  | AG74: 74
A75: 66 | B75: 1.666 | G75: -72.15709292 | N75: 0.09958770824 | P75: -7.185959517 | V75: 7.185959517 | Y75: 0.7257819112 | AD75: 30.70680742 | AE75: 0.8907864922 | AG75: 75
A76: 67 | B76: 1.767 | G76: -72.47877212 | N76: 0.08373627241 | P76: -6.069102207 | V76: 6.069102207 | Y76: 0.6129793229 | AD76: 31.31978674 | AE76: 0.9085686632 | AG76: 76
A77: 68 | B77: 1.868 | G77: -69.58579747 | N77: 0.06969333895 | P77: -4.849666569 | V77: 4.849666569 | Y77: 0.4898163235 | AD77: 31.80960307 | AE77: 0.9227779478 | AG77: 77
A78: 69 | B78: 1.969 | G78: -62.9249162 | N78: 0.05741675994 | P78: -3.612944808 | V78: 3.612944808 | Y78: 0.3649074256 | AD78: 32.17451049 | AE78: 0.9333636984 | AG78: 78
A79: 70 | B79: 2.07 | G79: -51.91219689 | N79: 0.04682263528 | P79: -2.430665861 | V79: 2.430665861 | Y79: 0.245497252 | AD79: 32.42000774 | AE79: 0.9404854298 | AG79: 79
A80: 71 | B80: 2.171 | G80: -35.93302943 | N80: 0.03779573425 | P80: -1.358115231 | V80: 1.358115231 | Y80: 0.1371696384 | AD80: 32.55717738 | AE80: 0.9444646407 | AG80: 80
A81: 72 | B81: 2.272 | G81: -14.34212506 | N81: 0.03019948121 | P81: -0.4331247362 | V81: 0.4331247362 | Y81: 0.04374559835 | AD81: 32.60092298 | AE81: 0.9457336749 | AG81: 81
A82: 73 | B82: 2.373 | G82: 13.53648371 | N82: 0.02388503819 | P82: 0.3233194303 | V82: 0.3233194303 | Y82: 0.03265526246 | AD82: 32.63357824 | AE82: 0.9466809849 | AG82: 82
A83: 74 | B83: 2.474 | G83: 48.40944299 | N83: 0.01869916267 | P83: 0.9052160492 | V83: 0.9052160492 | Y83: 0.09142682097 | AD83: 32.72500506 | AE83: 0.9493332234 | AG83: 83
A84: 75 | B84: 2.575 | G84: 91.01407762 | N84: 0.01449065916 | P84: 1.318853977 | V84: 1.318853977 | Y84: 0.1332042517 | AD84: 32.85820932 | AE84: 0.9531974007 | AG84: 84
A85: 76 | B85: 2.676 | G85: 142.1183911 | N85: 0.01111536901 | P85: 1.579698359 | V85: 1.579698359 | Y85: 0.1595495343 | AD85: 33.01775885 | AE85: 0.9578258392 | AG85: 85
A86: 77 | B86: 2.777 | G86: 202.5210655 | N86: 0.008439746274 | P86: 1.709226408 | V86: 1.709226408 | Y86: 0.1726318672 | AD86: 33.19039072 | AE86: 0.9628337885 | AG86: 86
A87: 78 | B87: 2.878 | G87: 273.0514618 | N87: 0.006343145276 | P87: 1.73200509 | V87: 1.73200509 | Y87: 0.1749325141 | AD87: 33.36532323 | AE87: 0.9679084783 | AG87: 87
A88: 79 | B88: 2.979 | G88: 354.5696195 | N88: 0.004718996853 | P88: 1.673212919 | V88: 1.673212919 | Y88: 0.1689945048 | AD88: 33.53431774 | AE88: 0.9728109098 | AG88: 88
A89: 80 | B89: 3.08 | G89: 447.9662568 | N89: 0.003475077378 | P89: 1.556717405 | V89: 1.556717405 | Y89: 0.1572284579 | AD89: 33.69154619 | AE89: 0.9773720153 | AG89: 89
A90: 81 | B90: 3.181 | G90: 554.1627705 | N90: 0.00253308074 | P90: 1.403739041 | V90: 1.403739041 | Y90: 0.1417776431 | AD90: 33.83332384 | AE90: 0.9814849017 | AG90: 90
A91: 82 | B91: 3.282 | G91: 674.1112363 | N91: 0.00182769342 | P91: 1.232068671 | V91: 1.232068671 | Y91: 0.1244389358 | AD91: 33.95776277 | AE91: 0.9850948023 | AG91: 91
A92: 83 | B92: 3.383 | G92: 808.7944083 | N92: 0.00130535136 | P92: 1.055760881 | V92: 1.055760881 | Y92: 0.1066318489 | AD92: 34.06439462 | AE92: 0.9881881297 | AG92: 92
A93: 84 | B93: 3.484 | G93: 959.2257194 | N93: 0.0009228290672 | P93: 0.8852013759 | V93: 0.8852013759 | Y93: 0.08940533897 | AD93: 34.15379996 | AE93: 0.9907817262 | AF93: x | AG93: 93
A94: 85 | B94: 3.585 | G94: 1126.449281 | N94: 0.0006457804109 | P94: 0.7274388798 | V94: 0.7274388798 | Y94: 0.07347132686 | AD94: 34.22727129 | AE94: 0.9929130864 | AF94: x | AG94: 94
A95: 86 | B95: 3.686 | G95: 1311.539884 | N95: 0.0004473199117 | P95: 0.5866779053 | V95: 0.5866779053 | Y95: 0.05925446843 | AD95: 34.28652576 | AE95: 0.9946320238 | AF95: x | AG95: 95
A96: 87 | B96: 3.787 | G96: 1515.602997 | N96: 0.0003067053531 | P96: 0.4648435524 | V96: 0.4648435524 | Y96: 0.04694919879 | AD96: 34.33347496 | AE96: 0.9959939925 | AF96: x | AG96: 96
A97: 88 | B97: 3.888 | G97: 1739.774768 | N97: 0.000208158545 | P97: 0.3621489843 | V97: 0.3621489843 | Y97: 0.03657704741 | AD97: 34.370052 | AE97: 0.9970550713 | AF97: x | AG97: 97
A98: 89 | B98: 3.989 | G98: 1985.222022 | N98: 0.0001398417638 | P98: 0.2776169491 | V98: 0.2776169491 | Y98: 0.02803931186 | AD98: 34.39809131 | AE98: 0.9978684753 | AF98: x | AG98: 98
A99: 90 | B99: 4.09 | G99: 2253.142266 | N99: 9.299279572e-05 | P99: 0.2095259984 | V99: 0.2095259984 | Y99: 0.02116212584 | AD99: 34.41925344 | AE99: 0.9984823761 | AF99: x | AG99: 99
A100: 91 | B100: 4.191 | G100: 2544.763682 | N100: 6.121128236e-05 | P100: 0.1557682483 | V100: 0.1557682483 | Y100: 0.01573259307 | AD100: 34.43498603 | AE100: 0.9989387694 | AF100: x | AG100: 100
A101: 92 | B101: 4.292 | G101: 2861.345133 | N101: 3.988259546e-05 | P101: 0.1141178704 | V101: 0.1141178704 | Y101: 0.01152590491 | AD101: 34.44651194 | AE101: 0.9992731292 | AF101: x | AG101: 101
A102: 93 | B102: 4.393 | G102: 3204.176159 | N102: 2.572202232e-05 | P102: 0.0824178907 | V102: 0.0824178907 | Y102: 0.008324206961 | AD102: 34.45483615 | AE102: 0.9995146096 | AF102: x | AG102: 102
A103: 94 | B103: 4.494 | G103: 3574.576982 | N103: 1.64208854e-05 | P103: 0.05869771898 | V103: 0.05869771898 | Y103: 0.005928469617 | AD103: 34.46076462 | AE103: 0.999686591 | AF103: x | AG103: 103
A104: 95 | B104: 4.595 | G104: 3973.898498 | N104: 1.037666489e-05 | P104: 0.04123581303 | V104: 0.04123581303 | Y104: 0.004164817116 | AD104: 34.46492943 | AE104: 0.9998074099 | AF104: x | AG104: 104
A105: 96 | B105: 4.696 | G105: 4403.522285 | N105: 6.49065873e-06 | P105: 0.02858176036 | V105: 0.02858176036 | Y105: 0.002886757797 | AD105: 34.46781619 | AE105: =AD105/SUM($Y$9:$Y$108) -> 0.999891153 | AF105: x | AG105: 105
A106: 97 | B106: =$B$9+A106*$A$7 -> 4.797 | G106: 4864.860599 | N106: 4.0187364e-06 | P106: 0.01955059237 | V106: 0.01955059237 | Y106: 0.001974609829 | AD106: 34.4697908 | AE106: =AD106/SUM($Y$9:$Y$108) -> 0.9999484353 | AF106: x | AG106: 106
A107: 98 | B107: =$B$9+A107*$A$7 -> 4.898 | G107: 5359.356374 | N107: 2.462975138e-06 | P107: 0.0131999615 | V107: 0.0131999615 | Y107: 0.001333196112 | AD107: 34.471124 | AE107: =AD107/SUM($Y$9:$Y$108) -> 0.9999871106 | AF107: x | AG107: 107
A108: 99 | B108: =$B$9+A108*$A$7 -> 4.999 | G108: 5888.483224 | N108: 1.49417098e-06 | P108: 0.008798400751 | V108: 0.008798400751 | Y108: =($A$7/2)*V108 -> 0.0004443192379 | AD108: 34.47156832 | AE108: =AD108/SUM($Y$9:$Y$108) -> 1 | AF108: x | AG108: 108
AD110: =SUM($AD$9:$AD$108) -> 1738.935218

Sheet 10373
A1: Key | B1: RTI Calculated QA lb/MMBtu | C1: Run Grade | D1: Submitted Value | E1: Submitted Value UOM | F1: Use ? | G1: Comment | H1: facility_id | I1: configuration_id | J1: report_id | K1: sampling_port_id | L1: order | M1: pollutant_id | N1: pollutant_name | O1: run_id | P1: start_datetime | Q1: end_datetime | R1: unit_load | S1: fuel_flow_rate | T1: fuel_heating_value | U1: fg_moisture_content | V1: fg_oxygen_content | W1: fg_CO2_content | X1: fg_temperature | Y1: test_method | Z1: conc | AA1: conc_units | AB1: conc_ND | AC1: conc_MDL | AD1: conc2 | AE1: conc2_units | AF1: emission_rate | AG1: emission_rate_units | AH1: emission_rate_ND | AI1: emission_rate_MDL | AJ1: Calculated lb/MWh at Prom | AK1: Boiler Heat Rate (lb/MMBtu)/MWh | AL1: Calculated lb/MMBtu at Prom | AM1: Calculated conc lb/dscf | AN1: 19-1 lb/MMBtu | AO1: %diff | AP1: 19-6 lb/MMBtu | AQ1: %diff | AR1: emission_factor | AS1: emission_factor_units | AT1: emission_factor_ND | AU1: emission_factor_MDL | AV1: run_pollutant_comment | AW1: Fuel1 | AX1: Fuel1%Btu | AY1: Fuel2 | AZ1: Fuel2%Btu | BA1: QA Comment
A2: 5_SO2_T2_R1 | B2: =AN5 -> 0.03378784699 | C2: A | D2: =AF2 -> 9.91 | E2: =AG2 -> pound per hour (lb/hr) | F2: Yes | H2: 10373 | I2: 1A | J2: 2005 Emission Compliance and RATA Report\05015.4c | K2: Stack | L2: 3 | M2: 6 | N2: Sulfur Dioxide (SO2) | O2: 4 | P2: 2005-12-08T17:33:00 | Q2: 2005-12-08T18:33:00 | R2: 27.6 | S2: 20892 | T2: 13664 | V2: 4.58 | W2: 14.6 | X2: 295.4 | Y2: EPA 7E California South Coast AQMD 6.1 (non-isokinetic) for SOx | Z2: 17.68 | AA2: parts per million by volume (dry) (ppmvd @ 3% O2) | AB2: FALSE | AF2: 9.91 | AG2: pound per hour (lb/hr) | AH2: FALSE | AT2: FALSE
A3: 5_SO2_T2_R2 | B3: =AN6 -> 0.03439939173 | C3: A | D3: =AF3 -> 10.13 | E3: pound per hour (lb/hr) | F3: Yes | H3: 10373 | I3: 1A | J3: 2005 Emission Compliance and RATA Report\05015.4c | K3: Stack | L3: 3 | M3: 6 | N3: Sulfur Dioxide (SO2) | O3: 5 | P3: 2005-12-08T18:52:00 | Q3: 2005-12-08T19:52:00 | R3: 27.6 | S3: 20832 | T3: 13664 | V3: 4.57 | W3: 14.72 | X3: 295.5 | Y3: EPA 7E California South Coast AQMD 6.1 (non-isokinetic) for SOx | Z3: 18 | AA3: parts per million by volume (dry) (ppmvd @ 3% O2) | AB3: FALSE | AF3: 10.13 | AG3: pound per hour (lb/hr) | AH3: FALSE | AT3: FALSE
A4: 5_SO2_T2_R3 | B4: 0.03411273013 | C4: A | D4: 10.15 | E4: pound per hour (lb/hr) | F4: Yes | H4: 10373 | I4: 1A | J4: 2005 Emission Compliance and RATA Report\05015.4c | K4: Stack | L4: 3 | M4: 6 | N4: Sulfur Dioxide (SO2) | O4: 6 | P4: 2005-12-08T20:09:00 | Q4: 2005-12-08T21:09:00 | R4: 27.7 | S4: 20892 | T4: 13664 | V4: 4.41 | W4: 14.78 | X4: 295.5 | Y4: EPA 7E California South Coast AQMD 6.1 (non-isokinetic) for SOx | Z4: 17.85 | AA4: parts per million by volume (dry) (ppmvd @ 3% O2) | AB4: FALSE | AF4: 10.15 | AG4: pound per hour (lb/hr) | AH4: FALSE | AT4: FALSE
H5: 10373 | I5: 1A | J5: 2005 Emission Compliance and RATA Report\05015.4c | K5: Stack | N5: Sulfur Dioxide (SO2) | O5: 4 | P5: 2005-12-08T17:33:00 | Q5: 2005-12-08T18:33:00 | R5: 27.6 | S5: 20892 | T5: 13664 | U5: ND | V5: 4.58 | W5: 14.6 | X5: 295.4 | Y5: EPA 7E California South Coast AQMD 6.1 (non-isokinetic) for SOx | Z5: 17.68 | AB5: FALSE | AJ5: =AF2/R2 -> 0.359057971 | AK5: 10.71692535 | AL5: =AJ5/AK5 -> 0.03350382309 | AM5: =Z2*$J$39 -> 2.93488e-06 | AN5: =AM5*$I$53*20.9/(20.9-3) -> 0.03378784699 | AO5: =(AL5-AN5)/AL5 -> -0.008477357964 | AP5: =AM5*$K$53*100/W2 -> 0.03839466301 | AQ5: =(AL5-AP5)/AL5 -> -0.1459785623 | AV5: parts per million by volume (dry) (ppmvd @ 3% O2) | AW5: petroleum coke | AX5: 100
H6: 10373 | I6: 1A | J6: 2005 Emission Compliance and RATA Report\05015.4c | K6: Stack | N6: Sulfur Dioxide (SO2) | O6: 5 | P6: 2005-12-08T18:52:00 | Q6: 2005-12-08T19:52:00 | R6: 27.6 | S6: 20832 | T6: 13664 | U6: ND | V6: 4.57 | W6: 14.72 | X6: 295.5 | Y6: EPA 7E California South Coast AQMD 6.1 (non-isokinetic) for SOx | Z6: 18 | AB6: FALSE | AJ6: =AF3/R3 -> 0.3670289855 | AK6: 10.71692535 | AL6: =AJ6/AK6 -> 0.0342476012 | AM6: =Z3*$J$39 -> 2.988e-06 | AN6: =AM6*$I$53*20.9/(20.9-3) -> 0.03439939173 | AO6: =(AL6-AN6)/AL6 -> -0.004432150782 | AP6: =AM6*$K$53*100/W3 -> 0.03877092391 | AQ6: =(AL6-AP6)/AL6 -> -0.1320770669 | AV6: parts per million by volume (dry) (ppmvd @ 3% O2). | AW6: petroleum coke | AX6: 100
H7: 10373 | I7: 1A | J7: 2005 Emission Compliance and RATA Report\05015.4c | K7: Stack | N7: Sulfur Dioxide (SO2) | O7: 6 | P7: 2005-12-08T20:09:00 | Q7: 2005-12-08T21:09:00 | R7: 27.7 | S7: 20892 | T7: 13664 | U7: ND | V7: 4.41 | W7: 14.78 | X7: 295.5 | Y7: EPA 7E California South Coast AQMD 6.1 (non-isokinetic) for SOx | Z7: 17.85 | AB7: FALSE | AJ7: =AF4/R4 -> 0.3664259928 | AK7: 10.71692535 | AL7: =AJ7/AK7 -> 0.03419133574 | AM7: =Z4*$J$39 -> 2.9631e-06 | AN7: =AM7*$I$53*20.9/(20.9-3) -> 0.03411273013 | AO7: =(AL7-AN7)/AL7 -> 0.002298991961 | AP7: =AM7*$K$53*100/W4 -> 0.03829175237 | AQ7: =(AL7-AP7)/AL7 -> -0.1199256051 | AV7: parts per million by volume (dry) (ppmvd @ 3% O2). | AW7: petroleum coke | AX7: 100
AJ8: Averages | AL8: =AVERAGE(AL5:AL7) -> 0.03398092001
A9: 5_SO2_T3_R1 | B9: =AN12 -> 0.02904837524 | C9: A | D9: =AF9 -> 9.11 | E9: =AG9 -> pound per hour (lb/hr) | F9: Yes | H9: 10373 | I9: 1A | J9: 2006 Emission Compliance and RATA Report\06015.4c | K9: Stack | L9: 3 | M9: 6 | N9: Sulfur Dioxide (SO2) | O9: 4 | P9: 2006-12-19T14:05:00 | Q9: 2006-12-19T15:11:00 | R9: 28.7 | S9: 21660 | T9: 14145 | U9: 9.24 | V9: 5.13 | W9: 14.35 | Y9: EPA 7E California South Coast AQMD 6.1 (non-isokinetic) for SOx | Z9: 15.2 | AA9: parts per million by volume (dry) (ppmvd @ 3% O2) | AB9: FALSE | AF9: 9.11 | AG9: pound per hour (lb/hr) | AH9: FALSE | AT9: FALSE
A10: 5_SO2_T3_R2 | B10: =AN13 -> 0.0265830855 | C10: A | D10: =AF10 -> 8.3 | E10: pound per hour (lb/hr) | F10: Yes | H10: 10373 | I10: 1A | J10: 2006 Emission Compliance and RATA Report\06015.4c | K10: Stack | L10: 3 | M10: 6 | N10: Sulfur Dioxide (SO2) | O10: 5 | P10: 2006-12-19T15:23:00 | Q10: 2006-12-19T16:23:00 | R10: 28.7 | S10: 21665 | T10: 14145 | U10: 9.116 | V10: 5.22 | W10: 14.35 | Y10: EPA 7E California South Coast AQMD 6.1 (non-isokinetic) for SOx | Z10: 13.91 | AA10: parts per million by volume (dry) (ppmvd @ 3% O2) | AB10: FALSE | AF10: 8.3 | AG10: pound per hour (lb/hr) | AH10: FALSE | AT10: FALSE
A11: 5_SO2_T3_R3 | B11: 0.02514977751 | C11: A | D11: 7.85 | E11: pound per hour (lb/hr) | F11: Yes | H11: 10373 | I11: 1A | J11: 2006 Emission Compliance and RATA Report\06015.4c | K11: Stack | L11: 3 | M11: 6 | N11: Sulfur Dioxide (SO2) | O11: 6 | P11: 2006-12-19T16:34:00 | Q11: 2006-12-19T17:34:00 | R11: 28.7 | S11: 21666 | T11: 14145 | U11: 8.92 | V11: 5.26 | W11: 14.26 | Y11: EPA 7E California South Coast AQMD 6.1 (non-isokinetic) for SOx | Z11: 13.16 | AA11: parts per million by volume (dry) (ppmvd @ 3% O2) | AB11: FALSE | AF11: 7.85 | AG11: pound per hour (lb/hr) | AH11: FALSE | AT11: FALSE
H12: 10373 | I12: 1A | J12: 2006 Emission Compliance and RATA Report\06015.4c | K12: Stack | N12: Sulfur Dioxide (SO2) | O12: 4 | P12: 2006-12-19T14:05:00 | Q12: 2006-12-19T15:11:00 | R12: 28.7 | S12: 21660 | T12: 14145 | U12: 9.24 | V12: 5.13 | W12: 14.35 | Y12: EPA 7E California South Coast AQMD 6.1 (non-isokinetic) for SOx | Z12: 15.2 | AB12: FALSE | AJ12: =AF9/R9 -> 0.3174216028 | AK12: 10.71692535 | AL12: =AJ12/AK12 -> 0.02961871921 | AM12: =Z9*$J$39 -> 2.5232e-06 | AN12: =AM12*$I$53*20.9/(20.9-3) -> 0.02904837524 | AO12: =(AL12-AN12)/AL12 -> 0.01925619969 | AP12: =AM12*$K$53*100/W9 -> 0.03358405575 | AQ12: =(AL12-AP12)/AL12 -> -0.1338794061 | AV12: parts per million by volume (dry) (ppmvd @ 3% O2). | AW12: petroleum coke | AX12: 100
H13: 10373 | I13: 1A | J13: 2006 Emission Compliance and RATA Report\06015.4c | K13: Stack | N13: Sulfur Dioxide (SO2) | O13: 5 | P13: 2006-12-19T15:23:00 | Q13: 2006-12-19T16:23:00 | R13: 28.7 | S13: 21665 | T13: 14145 | U13: 9.116 | V13: 5.22 | W13: 14.35 | Y13: EPA 7E California South Coast AQMD 6.1 (non-isokinetic) for SOx | Z13: 13.91 | AB13: FALSE | AJ13: =AF10/R10 -> 0.2891986063 | AK13: 10.71692535 | AL13: =AJ13/AK13 -> 0.02698522167 | AM13: =Z10*$J$39 -> 2.30906e-06 | AN13: =AM13*$I$53*20.9/(20.9-3) -> 0.0265830855 | AO13: =(AL13-AN13)/AL13 -> 0.01490208901 | AP13: =AM13*$K$53*100/W10 -> 0.03073382997 | AQ13: =(AL13-AP13)/AL13 -> -0.1389133777 | AV13: parts per million by volume (dry) (ppmvd @ 3% O2). | AW13: petroleum coke | AX13: 100
H14: 10373 | I14: 1A | J14: 2006 Emission Compliance and RATA Report\06015.4c | K14: Stack | N14: Sulfur Dioxide (SO2) | O14: 6 | P14: 2006-12-19T16:34:00 | Q14: 2006-12-19T17:34:00 | R14: 28.7 | S14: 21666 | T14: 14145 | U14: 8.92 | V14: 5.26 | W14: 14.26 | Y14: EPA 7E California South Coast AQMD 6.1 (non-isokinetic) for SOx | Z14: 13.16 | AB14: FALSE | AJ14: =AF11/R11 -> 0.2735191638 | AK14: 10.71692535 | AL14: =AJ14/AK14 -> 0.02552216749 | AM14: =Z11*$J$39 -> 2.18456e-06 | AN14: =AM14*$I$53*20.9/(20.9-3) -> 0.02514977751 | AO14: =(AL14-AN14)/AL14 -> 0.0145908445 | AP14: =AM14*$K$53*100/W11 -> 0.02926023562 | AQ14: =(AL14-AP14)/AL14 -> -0.1464635846 | AV14: parts per million by volume (dry) (ppmvd @ 3% O2). | AW14: petroleum coke | AX14: 100
AJ15: Averages | AL15: =AVERAGE(AL12:AL14) -> 0.02737536946
A16: 5_SO2_T4_R1 | B16: =AN19 -> 0.02459556509 | C16: B | D16: =AF16 -> 6.82 | E16: =AG16 -> pound per hour (lb/hr) | F16: Yes | H16: 10373 | I16: 1A | J16: 2007 Emission Compliance and RATA Report\07015.4c | K16: Stack | L16: 3 | M16: 6 | N16: Sulfur Dioxide (SO2) | O16: 7 | P16: 2007-11-27T13:01:00 | Q16: 2007-11-27T14:05:00 | R16: 28.1 | S16: 21076 | T16: 14211 | U16: 7.556 | V16: 5.2 | W16: 14.25 | Y16: EPA 7E California South Coast AQMD 6.1 (non-isokinetic) for SOx | Z16: 12.87 | AA16: parts per million by volume (dry) (ppmvd @ 3% O2) | AB16: FALSE | AF16: 6.82 | AG16: pound per hour (lb/hr) | AH16: FALSE | AT16: FALSE
A17: 5_SO2_T4_R2 | B17: =AN20 -> 0.02325781097 | C17: B | D17: =AF17 -> 6.416 | E17: pound per hour (lb/hr) | F17: Yes | H17: 10373 | I17: 1A | J17: 2007 Emission Compliance and RATA Report\07015.4c | K17: Stack | L17: 3 | M17: 6 | N17: Sulfur Dioxide (SO2) | O17: 8 | P17: 2007-11-27T14:20:00 | Q17: 2007-11-27T15:20:00 | R17: 28.2 | S17: 21086 | T17: 14211 | U17: 7.61 | V17: 5.21 | W17: 13.93 | Y17: EPA 7E California South Coast AQMD 6.1 (non-isokinetic) for SOx | Z17: 12.17 | AA17: parts per million by volume (dry) (ppmvd @ 3% O2) | AB17: FALSE | AF17: 6.416 | AG17: pound per hour (lb/hr) | AH17: FALSE | AT17: FALSE
A18: 5_SO2_T4_R3 | B18: 0.02723285179 | C18: B | D18: 7.606 | E18: pound per hour (lb/hr) | F18: Yes | H18: 10373 | I18: 1A | J18: 2007 Emission Compliance and RATA Report\07015.4c | K18: Stack | L18: 3 | M18: 6 | N18: Sulfur Dioxide (SO2) | O18: 9 | P18: 2007-11-27T15:33:00 | Q18: 2007-11-27T16:33:00 | R18: 28.4 | S18: 21240 | T18: 14211 | U18: 7.26 | V18: 5.09 | W18: 13.93 | Y18: EPA 7E California South Coast AQMD 6.1 (non-isokinetic) for SOx | Z18: 14.25 | AA18: parts per million by volume (dry) (ppmvd @ 3% O2) | AB18: FALSE | AF18: 7.606 | AG18: pound per hour (lb/hr) | AH18: FALSE | AT18: FALSE
H19: 10373 | I19: 1A | J19: 2007 Emission Compliance and RATA Report\07015.4c | K19: Stack | N19: Sulfur Dioxide (SO2) | O19: 7 | P19: 2007-11-27T13:01:00 | Q19: 2007-11-27T14:05:00 | R19: 28.1 | S19: 21076 | T19: 14211 | U19: 7.556 | V19: 5.2 | W19: 14.25 | Y19: EPA 7E California South Coast AQMD 6.1 (non-isokinetic) for SOx | Z19: 12.87 | AB19: FALSE | AJ19: =AF16/R16 -> 0.2427046263 | AK19: 10.71692535 | AL19: =AJ19/AK19 -> 0.02264685237 | AM19: =Z16*$J$39 -> 2.13642e-06 | AN19: =AM19*$I$53*20.9/(20.9-3) -> 0.02459556509 | AO19: =(AL19-AN19)/AL19 -> -0.0860478393 | AP19: =AM19*$K$53*100/W16 -> 0.02863552421 | AQ19: =(AL19-AP19)/AL19 -> -0.2644372709 | AV19: parts per million by volume (dry) (ppmvd @ 3% O2). | AW19: petroleum coke | AX19: 100
H20: 10373 | I20: 1A | J20: 2007 Emission Compliance and RATA Report\07015.4c | K20: Stack | N20: Sulfur Dioxide (SO2) | O20: 8 | P20: 2007-11-27T14:20:00 | Q20: 2007-11-27T15:20:00 | R20: 28.2 | S20: 21086 | T20: 14211 | U20: 7.61 | V20: 5.21 | W20: 13.93 | Y20: EPA 7E California South Coast AQMD 6.1 (non-isokinetic) for SOx | Z20: 12.17 | AB20: FALSE | AJ20: =AF17/R17 -> 0.2275177305 | AK20: 10.71692535 | AL20: =AJ20/AK20 -> 0.02122975789 | AM20: =Z17*$J$39 -> 2.02022e-06 | AN20: =AM20*$I$53*20.9/(20.9-3) -> 0.02325781097 | AO20: =(AL20-AN20)/AL20 -> -0.09552878978 | AP20: =AM20*$K$53*100/W17 -> 0.02770007322 | AQ20: =(AL20-AP20)/AL20 -> -0.3047757478 | AV20: parts per million by volume (dry) (ppmvd @ 3% O2). | AW20: petroleum coke | AX20: 100
H21: 10373 | I21: 1A | J21: 2007 Emission Compliance and RATA Report\07015.4c | K21: Stack | N21: Sulfur Dioxide (SO2) | O21: 9 | P21: 2007-11-27T15:33:00 | Q21: 2007-11-27T16:33:00 | R21: 28.4 | S21: 21240 | T21: 14211 | U21: 7.26 | V21: 5.09 | W21: 13.93 | Y21: EPA 7E California South Coast AQMD 6.1 (non-isokinetic) for SOx | Z21: 14.25 | AB21: FALSE | AJ21: =AF18/R18 -> 0.2678169014 | AK21: 10.71692535 | AL21: =AJ21/AK21 -> 0.02499008742 | AM21: =Z18*$J$39 -> 2.3655e-06 | AN21: =AM21*$I$53*20.9/(20.9-3) -> 0.02723285179 | AO21: =(AL21-AN21)/AL21 -> -0.0897461593 | AP21: =AM21*$K$53*100/W18 -> 0.03243435032 | AQ21: =(AL21-AP21)/AL21 -> -0.2978886299 | AV21: parts per million by volume (dry) (ppmvd @ 3% O2). | AW21: petroleum coke | AX21: 100
AJ22: Averages | AL22: =AVERAGE(AL19:AL21) -> 0.02295556589
A23: 5_SO2_T5_R1 | B23: =AN26 -> 0.02446178968 | C23: A | D23: =AF23 -> 8.43 | E23: =AG23 -> pound per hour (lb/hr) | F23: Yes | H23: 10373 | I23: 1A | J23: 2008 Emission Compliance and RATA Report\08015.4c | K23: Stack | L23: 3 | M23: 6 | N23: Sulfur Dioxide (SO2) | O23: 4 | P23: 2008-11-20T09:05:00 | Q23: 2008-11-20T10:05:00 | R23: 28.4 | S23: 20241 | T23: 13690 | U23: 10.71 | V23: 3.87 | W23: 15.33 | Y23: EPA 7E California South Coast AQMD 6.1 (non-isokinetic) for SOx | Z23: 12.8 | AA23: parts per million by volume (dry) (ppmvd @ 3% O2) | AB23: FALSE | AF23: 8.43 | AG23: pound per hour (lb/hr) | AH23: FALSE | AT23: FALSE
A24: 5_SO2_T5_R2 | B24: =AN27 -> 0.03076834483 | C24: B | D24: =AF24 -> 10.73 | E24: pound per hour (lb/hr) | F24: Yes | H24: 10373 | I24: 1A | J24: 2008 Emission Compliance and RATA Report\08015.4c | K24: Stack | L24: 3 | M24: 6 | N24: Sulfur Dioxide (SO2) | O24: 5 | P24: 2008-01-20T10:19:00 | Q24: 2008-01-20T11:19:00 | R24: 28.5 | S24: 20391 | T24: 13690 | U24: 10.63 | V24: 3.67 | W24: 15.54 | Y24: EPA 7E California South Coast AQMD 6.1 (non-isokinetic) for SOx | Z24: 16.1 | AA24: parts per million by volume (dry) (ppmvd @ 3% O2) | AB24: FALSE | AF24: 10.73 | AG24: pound per hour (lb/hr) | AH24: FALSE | AT24: FALSE
A25: 5_SO2_T5_R3 | B25: 0.0294305907 | C25: A | D25: 10.07 | E25: pound per hour (lb/hr) | F25: Yes | H25: 10373 | I25: 1A | J25: 2008 Emission Compliance and RATA Report\08015.4c | K25: Stack | L25: 3 | M25: 6 | N25: Sulfur Dioxide (SO2) | O25: 6 | P25: 2008-01-20T11:28:00 | Q25: 2008-01-20T12:28:00 | R25: 28.5 | S25: 20295 | T25: 13690 | U25: 11 | V25: 3.9 | W25: 15.22 | Y25: EPA 7E California South Coast AQMD 6.1 (non-isokinetic) for SOx | Z25: 15.4 | AA25: parts per million by volume (dry) (ppmvd @ 3% O2) | AB25: FALSE | AF25: 10.07 | AG25: pound per hour (lb/hr) | AH25: FALSE | AT25: FALSE
H26: 10373 | I26: 1A | J26: 2008 Emission Compliance and RATA Report\08015.4c | K26: Stack | N26: Sulfur Dioxide (SO2) | O26: 4 | P26: 2008-11-20T09:05:00 | Q26: 2008-11-20T10:05:00 | R26: 28.4 | S26: 20241 | T26: 13690 | U26: 10.71 | V26: 3.87 | W26: 15.33 | Y26: EPA 7E California South Coast AQMD 6.1 (non-isokinetic) for SOx | Z26: 12.8 | AB26: FALSE | AJ26: =AF23/R23 -> 0.2968309859 | AK26: 10.71692535 | AL26: =AJ26/AK26 -> 0.02769740165 | AM26: =Z23*$J$39 -> 2.1248e-06 | AN26: =AM26*$I$53*20.9/(20.9-3) -> 0.02446178968 | AO26: =(AL26-AN26)/AL26 -> 0.1168200547 | AP26: =AM26*$K$53*100/W23 -> 0.02647337247 | AQ26: =(AL26-AP26)/AL26 -> 0.04419292446 | AV26: parts per million by volume (dry) (ppmvd @ 3% O2). | AW26: petroleum coke | AX26: 100
H27: 10373 | I27: 1A | J27: 2008 Emission Compliance and RATA Report\08015.4c | K27: Stack | N27: Sulfur Dioxide (SO2) | O27: 5 | P27: 2008-01-20T10:19:00 | Q27: 2008-01-20T11:19:00 | R27: 28.5 | S27: 20391 | T27: 13690 | U27: 10.63 | V27: 3.67 | W27: 15.54 | Y27: EPA 7E California South Coast AQMD 6.1 (non-isokinetic) for SOx | Z27: 16.1 | AB27: FALSE | AJ27: =AF24/R24 -> 0.3764912281 | AK27: 10.71692535 | AL27: =AJ27/AK27 -> 0.03513052632 | AM27: =Z24*$J$39 -> 2.6726e-06 | AN27: =AM27*$I$53*20.9/(20.9-3) -> 0.03076834483 | AO27: =(AL27-AN27)/AL27 -> 0.1241706842 | AP27: =AM27*$K$53*100/W24 -> 0.03284855856 | AQ27: =(AL27-AP27)/AL27 -> 0.06495683374 | AV27: parts per million by volume (dry) (ppmvd @ 3% O2). | AW27: petroleum coke | AX27: 100
H28: 10373 | I28: 1A | J28: 2008 Emission Compliance and RATA Report\08015.4c | K28: Stack | N28: Sulfur Dioxide (SO2) | O28: 6 | P28: 2008-01-20T11:28:00 | Q28: 2008-01-20T12:28:00 | R28: 28.5 | S28: 20295 | T28: 13690 | U28: 11 | V28: 3.9 | W28: 15.22 | Y28: EPA 7E California South Coast AQMD 6.1 (non-isokinetic) for SOx | Z28: 15.4 | AB28: FALSE | AJ28: =AF25/R25 -> 0.3533333333 | AK28: 10.71692535 | AL28: =AJ28/AK28 -> 0.03296965517 | AM28: =Z25*$J$39 -> 2.5564e-06 | AN28: =AM28*$I$53*20.9/(20.9-3) -> 0.0294305907 | AO28: =(AL28-AN28)/AL28 -> 0.1073430841 | AP28: =AM28*$K$53*100/W25 -> 0.0320809724 | AQ28: =(AL28-AP28)/AL28 -> 0.02695456665 | AV28: parts per million by volume (dry) (ppmvd @ 3% O2). | AW28: petroleum coke | AX28: 100
AJ29: Averages | AL29: =AVERAGE(AL26:AL28) -> 0.03193252771
A30: 5_SO2_T6_R1 | B30: =AN33 -> 0.0558034577 | C30: A | D30: =AF30 -> 18.43 | E30: =AG30 -> pound per hour (lb/hr) | F30: Yes | H30: 10373 | I30: 1A | J30: 2009 Emission Compliance and RATA Report\09015.4c | K30: Stack | L30: 3 | M30: 6 | N30: Sulfur Dioxide (SO2) | O30: 4 | P30: 2009-12-10T08:04:00 | Q30: 2009-12-10T09:04:00 | R30: 27.2 | S30: 20094 | T30: 13970 | U30: 11.4 | V30: 4.3 | W30: 14.95 | Y30: EPA 7E California South Coast AQMD 6.1 (non-isokinetic) for SOx | Z30: 29.2 | AA30: parts per million by volume (dry) (ppmvd @ 3% O2) | AB30: FALSE | AF30: 18.43 | AG30: pound per hour (lb/hr) | AH30: FALSE | AT30: FALSE
A31: 5_SO2_T6_R2 | B31: =AN34 -> 0.05007022574 | C31: A | D31: =AF31 -> 16.7 | E31: pound per hour (lb/hr) | F31: Yes | H31: 10373 | I31: 1A | J31: 2009 Emission Compliance and RATA Report\09015.4c | K31: Stack | L31: 3 | M31: 6 | N31: Sulfur Dioxide (SO2) | O31: 5 | P31: 2009-12-10T09:21:00 | Q31: 2009-12-10T10:21:00 | R31: 28.2 | S31: 20386 | T31: 13970 | U31: 11.32 | V31: 4.04 | W31: 15.28 | Y31: EPA 7E California South Coast AQMD 6.1 (non-isokinetic) for SOx | Z31: 26.2 | AA31: parts per million by volume (dry) (ppmvd @ 3% O2) | AB31: FALSE | AF31: 16.7 | AG31: pound per hour (lb/hr) | AH31: FALSE | AT31: FALSE
A32: 5_SO2_T6_R3 | B32: 0.05007022574 | C32: A | D32: 16.7 | E32: pound per hour (lb/hr) | F32: Yes | H32: 10373 | I32: 1A | J32: 2009 Emission Compliance and RATA Report\09015.4c | K32: Stack | L32: 3 | M32: 6 | N32: Sulfur Dioxide (SO2) | O32: 6 | P32: 2009-02-10T10:37:00 | Q32: 2009-02-10T11:37:00 | R32: 27.6 | S32: 20112 | T32: 13970 | U32: 12.26 | V32: 4.11 | W32: 15.17 | Y32: EPA 7E California South Coast AQMD 6.1 (non-isokinetic) for SOx | Z32: 26.2 | AA32: parts per million by volume (dry) (ppmvd @ 3% O2) | AB32: FALSE | AF32: 16.7 | AG32: pound per hour (lb/hr) | AH32: FALSE | AT32: FALSE
H33: 10373 | I33: 1A | J33: 2009 Emission Compliance and RATA Report\09015.4c | K33: Stack | N33: Sulfur Dioxide (SO2) | O33: 4 | P33: 2009-12-10T08:04:00 | Q33: 2009-12-10T09:04:00 | R33: 27.2 | S33: 20094 | T33: 13970 | U33: 11.4 | V33: 4.3 | W33: 14.95 | Y33: EPA 7E California South Coast AQMD 6.1 (non-isokinetic) for SOx | Z33: 29.2 | AB33: FALSE | AJ33: =AF30/R30 -> 0.6775735294 | AK33: 10.71692535 | AL33: =AJ33/AK33 -> 0.06322461968 | AM33: =Z30*$J$39 -> 4.8472e-06 | AN33: =AM33*$I$53*20.9/(20.9-3) -> 0.0558034577 | AO33: =(AL33-AN33)/AL33 -> 0.1173777243 | AP33: =AM33*$K$53*100/W30 -> 0.06192743813 | AQ33: =(AL33-AP33)/AL33 -> 0.02051703205 | AV33: parts per million by volume (dry) (ppmvd @ 3% O2). | AW33: petroleum coke | AX33: 100
H34: 10373 | I34: 1A | J34: 2009 Emission Compliance and RATA Report\09015.4c | K34: Stack | N34: Sulfur Dioxide (SO2) | O34: 5 | P34: 2009-12-10T09:21:00 | Q34: 2009-12-10T10:21:00 | R34: 28.2 | S34: 20386 | T34: 13970 | U34: 11.32 | V34: 4.04 | W34: 15.28 | Y34: EPA 7E California South Coast AQMD 6.1 (non-isokinetic) for SOx | Z34: 26.2 | AB34: FALSE | AJ34: =AF31/R31 -> 0.5921985816 | AK34: 10.71692535 | AL34: =AJ34/AK34 -> 0.05525825385 | AM34: =Z31*$J$39 -> 4.3492e-06 | AN34: =AM34*$I$53*20.9/(20.9-3) -> 0.05007022574 | AO34: =(AL34-AN34)/AL34 -> 0.09388693538 | AP34: =AM34*$K$53*100/W31 -> 0.054365 | AQ34: =(AL34-AP34)/AL34 -> 0.01616507561 | AV34: parts per million by volume (dry) (ppmvd @ 3% O2). | AW34: petroleum coke | AX34: 100
H35: 10373 | I35: 1A | J35: 2009 Emission Compliance and RATA Report\09015.4c | K35: Stack | N35: Sulfur Dioxide (SO2) | O35: 6 | P35: 2009-02-10T10:37:00 | Q35: 2009-02-10T11:37:00 | R35: 27.6 | S35: 20112 | T35: 13970 | U35: 12.26 | V35: 4.11 | W35: 15.17 | Y35: EPA 7E California South Coast AQMD 6.1 (non-isokinetic) for SOx | Z35: 26.2 | AB35: FALSE | AJ35: =AF32/R32 -> 0.6050724638 | AK35: 10.71692535 | AL35: =AJ35/AK35 -> 0.05645952024 | AM35: =Z32*$J$39 -> 4.3492e-06 | AN35: =AM35*$I$53*20.9/(20.9-3) -> 0.05007022574 | AO35: =(AL35-AN35)/AL35 -> 0.1131659368 | AP35: =AM35*$K$53*100/W32 -> 0.05475920897 | AQ35: =(AL35-AP35)/AL35 -> 0.03011558135 | AV35: parts per million by volume (dry) (ppmvd @ 3% O2). | AW35: petroleum coke | AX35: 100
AG36: Averages from Prom | AJ36: Averages | AL36: =AVERAGE(AL33:AL35) -> 0.05831413126
AG37: 0.02264685237
H38: Conversions | AG38: 0.02122975789
H39: 1 | I39: ppm SO2= | J39: 1.66e-07 | K39: lb/scf | AG39: 0.02499008742
H40: 1 | I40: ppm Hg= | J40: =J39*H45/H46 -> 5.197930066e-07 | K40: lb/scf
H41: 1000 | I41: mg= | J41: 1 | K41: g
H42: 1000000 | I42: ug= | J42: 1 | K42: g
H43: 454 | I43: g= | J43: 1 | K43: lb
H44: 1 | I44: m^3= | J44: 35.3145 | K44: ft^3
H45: 200.59 | I45: Hg molecular weight
H46: 64.06 | I46: SO2 molecular weight
H48: Table 19-2 | I48: Fd | J48: Fw | K48: Fc
H49: Fuel Type | I49: dscf/MMBtu | J49: wscf/MMBtu | K49: scf/MMBtu
H50: Coal
H51: Anthracite | I51: 10100 | J51: 10540 | K51: 1970
H52: Bituminous | I52: 9780 | J52: 40640 | K52: 1800
H53: Lignite | I53: 9860 | J53: 11950 | K53: 1910
H54: Oil | I54: 9190 | J54: 10320 | K54: 1420

Sheet ETTS_Other
H1: facility | I1: facility | J1: facility | K1: facility | L1: facility | M1: facility | N1: facility | O1: facility | P1: facility | Q1: facility | R1: facility | S1: facility | T1: facility | U1: facility | V1: facility | W1: facility | X1: facility | Y1: facility | Z1: facility | AA1: facility | AB1: facility | AC1: facility | AD1: facility | AE1: RTI Calculation | AF1: RTI Calculation | AG1: RTI Calculation | AH1: RTI Calculation | AI1: RTI Calculation | AJ1: RTI Calculation | AK1: RTI Calculation | AL1: RTI Calculation | AM1: RTI Calculation | AN1: RTI Calculation | AO1: RTI Calculation | AP1: RTI Calculation | AQ1: facility | AR1: facility | AS1: facility | AT1: facility | AU1: facility | AV1: facility | AW1: facility | AX1: facility | AY1: facility | AZ1: facility | BA1: facility | BB1: facility | BC1: facility | BD1: facility | BE1: facility | BF1: facility | BG1: facility | BH1: facility | BI1: facility | BJ1: facility
A2: Key | B2: RTI Calculated QA lb/MMBtu | C2: Run Grade | D2: Submitted Value | E2: Submitted Value UOM | F2: Use ? | G2: Comment | H2: facility_id | I2: configuration_id | J2: submittal_id | K2: pollutant | L2: run_number | M2: start_date | N2: end_date | O2: measured_value_ppm | P2: measured_value_NO | Q2: measured_value_NO2 | R2: measured_TDS | S2: measured_TSS | T2: basis | U2: test_method | V2: data_flag | W2: method_comments | X2: emission_rate | Y2: emission_rate_ppmdv | Z2: steam_output | AA2: heat_input | AB2: fg_moisture_content | AC2: fg_CO2_content | AD2: fg_oxygen_content | AE2: 19-1 | AF2: 19-5 | AG2: 19-6 | AH2: 19-9 | AI2: 19-1 | AJ2: 19-5 | AK2: 19-6 | AL2: 19-9 | AM2: 19-1 | AN2: 19-5 | AO2: 19-6 | AP2: 19-9 | AQ2: fg_flow_rate | AR2: fg_temperature | AS2: fuel1_input_rate | AT2: fuel1_type | AU2: fuel1_rate_units | AV2: fuel1_method | AW2: fuel2_input_rate | AX2: fuel2_type | AY2: fuel2_rate_units | AZ2: fuel2_method | BA2: fuel3_input_rate | BB2: fuel3_type | BC2: fuel3_rate_units | BD2: fuel3_method | BE2: fuel4_input_rate | BF2: fuel4_type | BG2: fuel4_rate_units | BH2: fuel4_method | BI2: other_information | BJ2: exclude_data | BK2: QA Comment | BL2: Questions for EPA
AE3: using ppmdv; column R | AI3: using ppm ; column H | AM3: using ppm ; column H
A4: 5_SO2_T1_R1 | B4: =AM4 -> O4*$J$11*'\\rtifile02.rcc_nt.rti.org\ehe\Projects\0213199-EPA_SPPD_(Base)\0213199.000.002-EGU_MACT\Data_and_Tools\New_Floors\Deliverable_Files\Data_Workbooks\[DRAFT_Runs_QA_Top9.xlsm]10373_1A_ERT_Data'!$AP$11*20.9/(20.9-AD4) | C4: A | D4: =X4 -> 0.05958660397 | E4: lb/MMBtu | F4: Yes | H4: 10373 | I4: 1A | J4: 1265 | K4: SO2 | L4: 1 | M4: 2010-05-18 | N4: 2010-05-18 | O4: 29.61 | T4: Dry | W4: Plant Monitor | X4: 0.05958660397 | Y4: 24.25 | Z4: 218.82 | AA4: 277 | AB4: 13.1 | AC4: 15.5 | AD4: 3.8 | AE4: Y4*$J$11*'\\rtifile02.rcc_nt.rti.org\ehe\Projects\0213199-EPA_SPPD_(Base)\0213199.000.002-EGU_MACT\Data_and_Tools\New_Floors\Deliverable_Files\Data_Workbooks\[DRAFT_Runs_QA_Top9.xlsm]10373_1A_ERT_Data'!$AP$11*20.9/(20.9-AD4) | AF4: Y4*$J$11*20.9/((20.9-AD4)/(1-AB4/100))*'\\rtifile02.rcc_nt.rti.org\ehe\Projects\0213199-EPA_SPPD_(Base)\0213199.000.002-EGU_MACT\Data_and_Tools\New_Floors\Deliverable_Files\Data_Workbooks\[DRAFT_Runs_QA_Top9.xlsm]10373_1A_ERT_Data'!$AP$11 | AG4: =Y4*$J$11*$K$18*100/AC4 -> 0.04960454839 | AH4: =Y4*$J$11*$K$18*100/AC4*(1-AB4/100) -> 0.04310635255 | AI4: =O4*$J$11*$I$19*20.9/(20.9-AD4) -> 0.0590541182 | AJ4: =O4*$J$11*20.9/((20.9-AD4)/(1-AB4/100))*$I$19 -> 0.05131802872 | AK4: =O4*$J$11*$K$19*100/AC4 -> 0.05866600645 | AL4: =K4*$J$11*$K$18*100/Y4*(1-X4/100) ->  | AM4: O4*$J$11*'\\rtifile02.rcc_nt.rti.org\ehe\Projects\0213199-EPA_SPPD_(Base)\0213199.000.002-EGU_MACT\Data_and_Tools\New_Floors\Deliverable_Files\Data_Workbooks\[DRAFT_Runs_QA_Top9.xlsm]10373_1A_ERT_Data'!$AP$11*20.9/(20.9-AD4) | AN4: O4*$J$11*20.9/((20.9-AD4)/(1-AB4/100))*'\\rtifile02.rcc_nt.rti.org\ehe\Projects\0213199-EPA_SPPD_(Base)\0213199.000.002-EGU_MACT\Data_and_Tools\New_Floors\Deliverable_Files\Data_Workbooks\[DRAFT_Runs_QA_Top9.xlsm]10373_1A_ERT_Data'!$AP$11 | AO4: =O4*$J$11*$K$18*100/AC4 -> 0.06056868774 | AP4: =O4*$J$11*$K$18*100/AC4*(1-AB4/100) -> 0.05263418965 | AQ4: 68553 | AR4: 343 | AS4: NA | AT4: petroleum coke | AU4: MMBtu/hr | AV4: F-Factor | BJ4: FALSE
A5: 5_SO2_T1_R2 | B5: =AM5 -> =O5*$J$11*'\\rtifile02.rcc_nt.rti.org\ehe\Projects\0213199-EPA_SPPD_(Base)\0213199.000.002-EGU_MACT\Data_and_Tools\New_Floors\Deliverable_Files\Data_Workbooks\[DRAFT_Runs_QA_Top9.xlsm]10373_1A_ERT_Data'!$AP$11*20.9/(20.9-AD5) | C5: A | D5: =X5 -> 0.05910643563 | E5: lb/MMBtu | F5: Yes | H5: 10373 | I5: 1A | J5: 1265 | K5: SO2 | L5: 2 | M5: 2010-05-19 | N5: 2010-05-19 | O5: 29.38 | T5: Dry | W5: Plant Monitor | X5: 0.05910643563 | Y5: 24.05 | Z5: 223.54 | AA5: 279.1 | AB5: 12.2 | AC5: 15.9 | AD5: 3.8 | AE5: =Y5*$J$11*20.9/(20.9-AD5) -> 4.879477778e-06 | AF5: Y5*$J$11*20.9/((20.9-AD5)/(1-AB5/100))*'\\rtifile02.rcc_nt.rti.org\ehe\Projects\0213199-EPA_SPPD_(Base)\0213199.000.002-EGU_MACT\Data_and_Tools\New_Floors\Deliverable_Files\Data_Workbooks\[DRAFT_Runs_QA_Top9.xlsm]10373_1A_ERT_Data'!$AP$11 | AG5: =Y5*$J$11*$K$18*100/AC5 -> 0.04795781761 | AH5: =Y5*$J$11*$K$18*100/AC5*(1-AB5/100) -> 0.04210696386 | AI5: =O5*$J$11*$I$19*20.9/(20.9-AD5) -> 0.05859540671 | AJ5: =O5*$J$11*20.9/((20.9-AD5)/(1-AB5/100))*$I$19 -> 0.05144676709 | AK5: =O5*$J$11*$K$19*100/AC5 -> 0.05674589937 | AL5: =K5*$J$11*$K$18*100/Y5*(1-X5/100) ->  | AM5: =O5*$J$11*'\\rtifile02.rcc_nt.rti.org\ehe\Projects\0213199-EPA_SPPD_(Base)\0213199.000.002-EGU_MACT\Data_and_Tools\New_Floors\Deliverable_Files\Data_Workbooks\[DRAFT_Runs_QA_Top9.xlsm]10373_1A_ERT_Data'!$AP$11*20.9/(20.9-AD5) | AN5: O5*$J$11*20.9/((20.9-AD5)/(1-AB5/100))*'\\rtifile02.rcc_nt.rti.org\ehe\Projects\0213199-EPA_SPPD_(Base)\0213199.000.002-EGU_MACT\Data_and_Tools\New_Floors\Deliverable_Files\Data_Workbooks\[DRAFT_Runs_QA_Top9.xlsm]10373_1A_ERT_Data'!$AP$11 | AO5: =O5*$J$11*$K$18*100/AC5 -> 0.05858630692 | AP5: =O5*$J$11*$K$18*100/AC5*(1-AB5/100) -> 0.05143877747 | AQ5: 66623 | AR5: 341 | AS5: NA | AT5: petroleum coke | AU5: MMBtu/hr | AV5: F-Factor | BJ5: FALSE
A6: 5_SO2_T1_R3 | B6: O6*$J$11*'\\rtifile02.rcc_nt.rti.org\ehe\Projects\0213199-EPA_SPPD_(Base)\0213199.000.002-EGU_MACT\Data_and_Tools\New_Floors\Deliverable_Files\Data_Workbooks\[DRAFT_Runs_QA_Top9.xlsm]10373_1A_ERT_Data'!$AP$11*20.9/(20.9-AD6) | C6: A | D6: 0.05775739126 | E6: lb/MMBtu | F6: Yes | H6: 10373 | I6: 1A | J6: 1265 | K6: SO2 | L6: 3 | M6: 2010-05-20 | N6: 2010-05-20 | O6: 28.7 | T6: Dry | W6: Plant Monitor | X6: 0.05775739126 | Y6: 23.5 | Z6: 221.24 | AA6: 275 | AB6: 12 | AC6: 15.8 | AD6: 3.9 | AE6: =Y6*$J$11*20.9/(20.9-AD6) -> 4.795935294e-06 | AF6: Y6*$J$11*20.9/((20.9-AD6)/(1-AB6/100))*'\\rtifile02.rcc_nt.rti.org\ehe\Projects\0213199-EPA_SPPD_(Base)\0213199.000.002-EGU_MACT\Data_and_Tools\New_Floors\Deliverable_Files\Data_Workbooks\[DRAFT_Runs_QA_Top9.xlsm]10373_1A_ERT_Data'!$AP$11 | AG6: =Y6*$J$11*$K$18*100/AC6 -> 0.04715765823 | AH6: =Y6*$J$11*$K$18*100/AC6*(1-AB6/100) -> 0.04149873924 | AI6: 0.05757591749 | AJ6: 0.05066680739 | AK6: 0.05578335443 | AM6: O6*$J$11*'\\rtifile02.rcc_nt.rti.org\ehe\Projects\0213199-EPA_SPPD_(Base)\0213199.000.002-EGU_MACT\Data_and_Tools\New_Floors\Deliverable_Files\Data_Workbooks\[DRAFT_Runs_QA_Top9.xlsm]10373_1A_ERT_Data'!$AP$11*20.9/(20.9-AD6) | AN6: =O6*$J$11*20.9/((20.9-AD6)/(1-AB6/100))*'\\rtifile02.rcc_nt.rti.org\ehe\Projects\0213199-EPA_SPPD_(Base)\0213199.000.002-EGU_MACT\Data_and_Tools\New_Floors\Deliverable_Files\Data_Workbooks\[DRAFT_Runs_QA_Top9.xlsm]10373_1A_ERT_Data'!$AP$11 | AO6: 0.0575925443 | AP6: 0.05068143899 | AQ6: 67896 | AR6: 344 | AS6: NA | AT6: petroleum coke | AU6: MMBtu/hr | AV6: F-Factor | BJ6: FALSE
A7: 5_SO2_T1_R4 | B7: O7*$J$11*'\\rtifile02.rcc_nt.rti.org\ehe\Projects\0213199-EPA_SPPD_(Base)\0213199.000.002-EGU_MACT\Data_and_Tools\New_Floors\Deliverable_Files\Data_Workbooks\[DRAFT_Runs_QA_Top9.xlsm]10373_1A_ERT_Data'!$AP$11*20.9/(20.9-AD7) | C7: A | D7: 0.054121831 | E7: lb/MMBtu | F7: Yes | H7: 10373 | I7: 1A | J7: 1265 | K7: SO2 | L7: 4 | M7: 2010-05-21 | N7: 2010-05-21 | O7: 26.9 | T7: Dry | W7: Plant Monitor | X7: 0.054121831 | Y7: 22.02 | Z7: 220.29 | AA7: 273.6 | AB7: 11.7 | AC7: 15.7 | AD7: 3.9 | AE7: =Y7*$J$11*20.9/(20.9-AD7) -> 4.493893412e-06 | AF7: Y7*$J$11*20.9/((20.9-AD7)/(1-AB7/100))*'\\rtifile02.rcc_nt.rti.org\ehe\Projects\0213199-EPA_SPPD_(Base)\0213199.000.002-EGU_MACT\Data_and_Tools\New_Floors\Deliverable_Files\Data_Workbooks\[DRAFT_Runs_QA_Top9.xlsm]10373_1A_ERT_Data'!$AP$11 | AG7: =Y7*$J$11*$K$18*100/AC7 -> 0.04446917962 | AH7: =Y7*$J$11*$K$18*100/AC7*(1-AB7/100) -> 0.0392662856 | AI7: 0.05396488434 | AJ7: 0.04765099287 | AK7: 0.0526177707 | AM7: O7*$J$11*'\\rtifile02.rcc_nt.rti.org\ehe\Projects\0213199-EPA_SPPD_(Base)\0213199.000.002-EGU_MACT\Data_and_Tools\New_Floors\Deliverable_Files\Data_Workbooks\[DRAFT_Runs_QA_Top9.xlsm]10373_1A_ERT_Data'!$AP$11*20.9/(20.9-AD7) | AN7: =O7*$J$11*20.9/((20.9-AD7)/(1-AB7/100))*'\\rtifile02.rcc_nt.rti.org\ehe\Projects\0213199-EPA_SPPD_(Base)\0213199.000.002-EGU_MACT\Data_and_Tools\New_Floors\Deliverable_Files\Data_Workbooks\[DRAFT_Runs_QA_Top9.xlsm]10373_1A_ERT_Data'!$AP$11 | AO7: 0.05432429299 | AP7: 0.04796835071 | AQ7: 68376 | AR7: 343 | AS7: NA | AT7: petroleum coke | AU7: MMBtu/hr | AV7: F-Factor | BJ7: FALSE
AE8: *Fd from ERT used | AF8: *Fd from ERT used | AG8: *Fc for lignite used | AH8: *Fc for lignite used | AI8: *Fd from ERT used | AJ8: *Fd from ERT used | AK8: *Fc for lignite used | AL8: *Fc for lignite used | AM8: *Fd from ERT used | AN8: *Fd from ERT used | AO8: *Fc for lignite used | AP8: *Fc for lignite used
H10: Conversions | AI10: =X4/O4/$J$11/20.9*(20.9-AD4) -> 9918.636242
H11: 1 | I11: ppm SO2 | J11: 1.66e-07 | K11: lb/scf
H13: Table 19-2 | I13: Fd | J13: Fw | K13: Fc
H14: Fuel Type | I14: dscf/MMBtu | J14: wscf/MMBtu | K14: scf/MMBtu
H15: Coal
H16: Anthracite | I16: 10100 | J16: 10540 | K16: 1970
H17: Bituminous | I17: 9780 | J17: 40640 | K17: 1800
H18: Lignite | I18: 9860 | J18: 11950 | K18: 1910
H19: Petcoke | I19: 9830 | K19: 1850
H20: Oil | I20: 9190 | J20: 10320 | K20: 1420
H22: *petcoke F factor for this unit was taken from other ERT provided tests

Sheet 10373_1a_ERT_Data
A1: submittal_id | B1: Location | C1: RunDate | D1: Method | E1: RunNumber | F1: RunStartTime | G1: RunEndTime | H1: NetTravPts | I1: NetRunTime | J1: Dn | K1: Cp | L1: Y | M1: Pb | N1: DeltaH | O1: Vm | P1: tm | Q1: Vmstd | R1: Vlc | S1: Vwstd | T1: PercH20 | U1: PercH20sat | V1: Mfd | W1: PercCO2 | X1: PercO2 | Y1: PercCOplusN2 | Z1: Fo | AA1: Md | AB1: Ms | AC1: Pg | AD1: Ps | AE1: ts | AF1: DeltaPavg | AG1: Vs | AH1: Dstk | AI1: Dwdth | AJ1: Dlngth | AK1: As | AL1: Qsd | AM1: Qaw | AN1: PercI | AO1: PercEA | AP1: Fd | AQ1: Fc | AR1: Fw | AS1: MMBtuHr | AT1: FuelType
A2: 1260 | B2: Baghouse outlet | C2: 2010-05-18 | D2: Method 23 | E2: 1 | F2: 17:30 | G2: 01:30 | H2: 24 | I2: 480 | J2: 0.175 | K2: 0.84 | L2: 0.967 | M2: 30.18 | N2: 1.25 | O2: 316.512 | P2: 100.13 | Q2: 291.904 | R2: 936.7 | S2: 44.09 | T2: 13.12 | U2: 100.00 | V2: 0.8688 | W2: 15.5 | X2: 3.8 | Y2: 80.7 | Z2: 1.10 | AA2: 30.63 | AB2: 28.97 | AC2: 1.9 | AD2: 30.32 | AE2: 343.42 | AF2: 2.218 | AG2: 102.28 | AH2: 59.5 | AI2: 0 | AJ2: 0 | AK2: 19.309 | AL2: 68,561.5 | AM2: 118,495.5 | AN2: 102.5 | AO2: 21.7 | AP2: 9827 | AQ2: 0 | AR2: 0 | AS2: 342.499884363119 | AT2: Override
A3: 1260 | B3: Baghouse outlet | C3: 2010-05-19 | D3: Method 23 | E3: 2 | F3: 16:20 | G3: 00:20 | H3: 24 | I3: 480 | J3: 0.175 | K3: 0.84 | L3: 0.967 | M3: 30.22 | N3: 1.32 | O3: 317.595 | P3: 91.46 | Q3: 297.951 | R3: 941.3 | S3: 44.31 | T3: 12.95 | U3: 100.00 | V3: 0.8705 | W3: 16 | X3: 3.7 | Y3: 80.3 | Z3: 1.08 | AA3: 30.71 | AB3: 29.06 | AC3: 1.9 | AD3: 30.36 | AE3: 339.63 | AF3: 2.350 | AG3: 104.80 | AH3: 59.5 | AI3: 0 | AJ3: 0 | AK3: 19.309 | AL3: 70,815.1 | AM3: 121,415.0 | AN3: 101.3 | AO3: 21.1 | AP3: 9768 | AQ3: 0 | AR3: 0 | AS3: 357.975770899216 | AT3: Override
A4: 1260 | B4: Baghouse outlet | C4: 2010-05-20 | D4: Method 23 | E4: 3 | F4: 16:20 | G4: 00:20 | H4: 24 | I4: 480 | J4: 0.175 | K4: 0.84 | L4: 0.967 | M4: 29.9 | N4: 1.28 | O4: 315.328 | P4: 76.58 | Q4: 300.790 | R4: 920.8 | S4: 43.34 | T4: 12.59 | U4: 100.00 | V4: 0.8741 | W4: 15.7 | X4: 4 | Y4: 80.3 | Z4: 1.08 | AA4: 30.67 | AB4: 29.07 | AC4: 1.9 | AD4: 30.04 | AE4: 343.83 | AF4: 2.357 | AG4: 105.78 | AH4: 59.5 | AI4: 0 | AJ4: 0 | AK4: 19.309 | AL4: 70,645.4 | AM4: 122,550.4 | AN4: 102.5 | AO4: 23.3 | AP4: 9930 | AQ4: 0 | AR4: 0 | AS4: 345.1646482314 | AT4: Override
A5: 1260 | B5: Baghouse outlet | C5: 2010-05-21 | D5: Method 29 | E5: 1 | F5: 12:20 | G5: 16:20 | H5: 24 | I5: 240 | J5: 0.175 | K5: 0.84 | L5: 0.967 | M5: 29.92 | N5: 1.21 | O5: 150.560 | P5: 75.92 | Q5: 143.866 | R5: 428.8 | S5: 20.18 | T5: 12.30 | U5: 100.00 | V5: 0.877 | W5: 15.8 | X5: 3.8 | Y5: 80.4 | Z5: 1.08 | AA5: 30.68 | AB5: 29.12 | AC5: 1.9 | AD5: 30.06 | AE5: 348.38 | AF5: 2.259 | AG5: 103.72 | AH5: 59.5 | AI5: 0 | AJ5: 0 | AK5: 19.309 | AL5: 69,154.3 | AM5: 120,163.8 | AN5: 100.2 | AO5: 21.8 | AP5: 9856 | AQ5: 0 | AR5: 0 | AS5: 344.444749852421 | AT5: Override
A6: 1260 | B6: Baghouse outlet | C6: 2010-05-21 | D6: Method 29 | E6: 2 | F6: 16:50 | G6: 20:50 | H6: 24 | I6: 240 | J6: 0.175 | K6: 0.84 | L6: 0.967 | M6: 29.9 | N6: 1.25 | O6: 151.526 | P6: 82.71 | Q6: 142.897 | R6: 413 | S6: 19.44 | T6: 11.98 | U6: 100.00 | V6: 0.8802 | W6: 15.8 | X6: 3.8 | Y6: 80.4 | Z6: 1.08 | AA6: 30.68 | AB6: 29.16 | AC6: 1.9 | AD6: 30.04 | AE6: 338.54 | AF6: 2.265 | AG6: 103.19 | AH6: 59.5 | AI6: 0 | AJ6: 0 | AK6: 19.309 | AL6: 69,856.3 | AM6: 119,549.7 | AN6: 98.5 | AO6: 21.8 | AP6: 9861 | AQ6: 0 | AR6: 0 | AS6: 347.764858810189 | AT6: Override
A7: 1260 | B7: Baghouse outlet | C7: 2010-05-21 | D7: Method 29 | E7: 3 | F7: 21:20 | G7: 01:20 | H7: 24 | I7: 240 | J7: 0.175 | K7: 0.84 | L7: 0.967 | M7: 29.9 | N7: 1.20 | O7: 149.318 | P7: 61.35 | Q7: 146.566 | R7: 415 | S7: 19.53 | T7: 11.76 | U7: 100.00 | V7: 0.8824 | W7: 16 | X7: 3.8 | Y7: 80.2 | Z7: 1.07 | AA7: 30.71 | AB7: 29.22 | AC7: 1.9 | AD7: 30.04 | AE7: 337.92 | AF7: 2.224 | AG7: 102.11 | AH7: 59.5 | AI7: 0 | AJ7: 0 | AK7: 19.309 | AL7: 69,351.8 | AM7: 118,298.5 | AN7: 101.8 | AO7: 21.9 | AP7: 9838 | AQ7: 0 | AR7: 0 | AS7: 346.060470531705 | AT7: Override
A8: 1260 | B8: Baghouse outlet | C8: 2010-05-20 | D8: OTM - 27/28 | E8: 1 | F8: 18:26 | G8: 00:26 | H8: 24 | I8: 360 | J8: 0.136 | K8: 0.84 | L8: 0.977 | M8: 30.06 | N8: 0.44 | O8: 130.663 | P8: 87.79 | Q8: 123.755 | R8: 364.9 | S8: 17.18 | T8: 12.19 | U8: 100.00 | V8: 0.8781 | W8: 15.7 | X8: 4 | Y8: 80.3 | Z8: 1.08 | AA8: 30.67 | AB8: 29.13 | AC8: 1.9 | AD8: 30.20 | AE8: 347.63 | AF8: 1.960 | AG8: 96.33 | AH8: 59.5 | AI8: 0 | AJ8: 0 | AK8: 19.309 | AL8: 64,667.1 | AM8: 111,602.2 | AN8: 101.7 | AO8: 23.3 | AP8: 9930 | AQ8: 0 | AR8: 0 | AS8: 315.955417106347 | AT8: Override
A9: 1260 | B9: Baghouse outlet | C9: 2010-05-21 | D9: OTM - 27/28 | E9: 2 | F9: 14:16 | G9: 20:16 | H9: 24 | I9: 360 | J9: 0.136 | K9: 0.84 | L9: 0.977 | M9: 29.92 | N9: 0.44 | O9: 130.594 | P9: 76.46 | Q9: 125.714 | R9: 333.5 | S9: 15.70 | T9: 11.10 | U9: 100.00 | V9: 0.889 | W9: 15.6 | X9: 4.1 | Y9: 80.3 | Z9: 1.08 | AA9: 30.66 | AB9: 29.25 | AC9: 1.9 | AD9: 30.06 | AE9: 340.54 | AF9: 2.103 | AG9: 99.37 | AH9: 59.5 | AI9: 0 | AJ9: 0 | AK9: 19.309 | AL9: 67,818.2 | AM9: 115,124.1 | AN9: 98.6 | AO9: 24.0 | AP9: 9852 | AQ9: 0 | AR9: 0 | AS9: 331.998484751354 | AT9: Override
A10: 1260 | B10: Baghouse outlet | C10: 2010-05-21 | D10: OTM - 27/28 | E10: 3 | F10: 21:04 | G10: 03:04 | H10: 24 | I10: 360 | J10: 0.136 | K10: 0.84 | L10: 0.977 | M10: 29.9 | N10: 0.44 | O10: 128.921 | P10: 79.58 | Q10: 123.304 | R10: 329.1 | S10: 15.49 | T10: 11.16 | U10: 100.00 | V10: 0.8884 | W10: 15.6 | X10: 4.1 | Y10: 80.3 | Z10: 1.08 | AA10: 30.66 | AB10: 29.25 | AC10: 1.9 | AD10: 30.04 | AE10: 349.29 | AF10: 1.998 | AG10: 97.42 | AH10: 59.5 | AI10: 0 | AJ10: 0 | AK10: 19.309 | AL10: 65,680.4 | AM10: 112,865.0 | AN10: 99.8 | AO10: 24.0 | AP10: 9852 | AQ10: 0 | AR10: 0 | AS10: 321.53305864595 | AT10: Override
AP11: =AVERAGE(AP2:AP10) -> 9857.111111

Sheet Promulgated Min Data
A1: primary_fuel | B1: ORIS code | C1: Plant Name | D1: physical_state | E1: Unit Number | F1: boiler_id | G1: Unit Type | H1: boiler_type | I1: MWe_capacity | J1: max_heat_input | K1: Boiler_heat_rate | L1: Fuel types | M1: Sulfur Dioxide - CEMS | N1: Sulfur Dioxide MW - CEMS | O1: Sulfur Dioxide - ERT | P1: Sulfur Dioxide MW - ERT | Q1: Sulfur Dioxide - ETTS | R1: Sulfur Dioxide MW - ETTS | S1: Sulfur Dioxide - Part II | T1: Sulfur Dioxide MW - Part II | U1: Sulfur Dioxide - min | V1: Sulfur Dioxide MW - min | W1: control_group_1 | X1: control_type_1 | Y1: install_date_1 | Z1: control_group_2 | AA1: control_type_2 | AB1: install_date_2 | AC1: control_group_3 | AD1: control_type_3 | AE1: install_date_3 | AF1: control_group_4 | AG1: control_type_4 | AH1: install_date_4 | AI1: control_group_5 | AJ1: control_type_5 | AK1: install_date_5 | AL1: control_group_6 | AM1: control_type_6 | AN1: install_date_6 | AO1: control_group_7 | AP1: control_type_7 | AQ1: install_date_7 | AR1: control_group_8 | AS1: control_type_8 | AT1: install_date_8 | AU1: control_group_9 | AV1: control_type_9 | AW1: install_date_9 | AX1: control_group_10 | AY1: control_type_10 | AZ1: install_date_10 | BA1: control_group_11 | BB1: control_type_11 | BC1: install_date_11 | BD1: control_group_12 | BE1: control_type_12 | BF1: install_date_12
I2: MW | J2: MMBtu/hr | K2: Mmbtu/MWh | M2: lb/MMBtu | N2: lb/MW | O2: lb/MMBtu | P2: lb/MW | Q2: lb/MMBtu | R2: lb/MW | S2: lb/MMBtu | T2: lb/MW | U2: lb/MMBtu | V2: lb/MW
A3: petroleum coke | B3: 667 | C3: Northside Generating Station | D3: FL | E3: 1A | F3: 1A | G3: Fluidized bed firing | H3: Fluidized bed firing | I3: 310 | J3: 2764 | K3: 8.916129032 | L3: petroleum coke, bituminous | M3: 0.05893333333 | N3: 0.631584134 | Q3: 0.05764306547 | R3: 0.6177564296 | S3: 0.02295556589 | T3: 0.2460130861 | U3: 0.02295556589 | V3: 0.2460130861 | W3: PM control | X3: Fabric Filter, pulse | Y3: 1991-08-01
A4: petroleum coke | B4: 667 | C4: Northside Generating Station | D4: FL | E4: 2A | F4: 2A | G4: Fluidized bed firing | H4: Fluidized bed firing | I4: 310 | J4: 2764 | K4: 8.916129032 | L4: petroleum coke, bituminous | Q4: 0.0293 | R4: 0.5059133333 | S4: 0.3923419907 | T4: 6.774438373 | U4: 0.0293 | V4: 0.5059133333 | W4: PM control | X4: Fabric Filter, pulse | Y4: 1995-07-01
A5: petroleum coke | B5: 2878 | C5: Bay Shore | D5: OH | E5: Unit 1 | F5: 1 | G5: Fluidized bed firing | H5: Fluidized bed firing | I5: 151 | J5: 1218 | K5: 8.066225166 | L5: petroleum coke | Q5: 0.0293 | R5: 0.5059133333 | S5: 0.3923419907 | T5: 6.774438373 | U5: 0.0293 | V5: 0.5059133333 | W5: PM control | X5: Fabric Filter, pulse | Y5: 1995-07-01
A6: petroleum coke | B6: 4125 | C6: Manitowoc | D6: WI | E6: B-09 | F6: 9 | G6: Fluidized bed firing | H6: Fluidized bed firing | I6: 63.37 | J6: 1244 | K6: 19.6307401 | L6: petroleum coke, subbituminous, other--wood charcoal/paper pellets | M6: 0.1521333333 | N6: 1.35644043 | O6: 0.1514391165 | P6: 1.350250703 | U6: 0.1514391165 | V6: 1.350250703 | W6: NOx control | X6: Selective Noncatalytic Reduction | Y6: 2002-05-01 | Z6: SO2 control | AA6: Dry FGD - Spray Dryer | AB6: 2002-05-01 | AC6: PM control | AD6: Fabric Filter, pulse | AE6: 2002-05-01
A7: petroleum coke | B7: 10373 | C7: Hanford | D7: CA | E7: 1A | F7: CB1302 | G7: Fluidized bed firing | H7: Fluidized bed firing | I7: 27.06 | J7: 290 | K7: 10.71692535 | L7: petroleum coke | M7: 0.1724 | N7: 1.537140645 | O7: 0.1712988713 | P7: 1.52732284 | U7: 0.1712988713 | V7: 1.52732284 | W7: NOx control | X7: Selective Noncatalytic Reduction | Y7: 2002-02-01 | Z7: SO2 control | AA7: Dry FGD - Spray Dryer | AB7: 2002-02-01 | AC7: PM control | AD7: Fabric Filter, pulse | AE7: 2002-02-01
A8: petroleum coke | B8: 10670 | C8: AES Deepwater | D8: TX | E8: Deepwater | F8: AAB001 | G8: Conventional Boiler | H8: Arch firing | I8: 158 | J8: 1817.6 | K8: 11.50379747 | L8: petroleum coke | O8: 0.3772214667 | P8: 3.042753288 | U8: 0.3772214667 | V8: 3.042753288 | W8: PM control | X8: Fabric Filter, unspecified | Y8: 2000-12-01
A9: petroleum coke | B9: 50931 | C9: Yellowstone Energy LP | D9: MT | E9: Config1 | F9: BLR1 | G9: Fluidized bed firing | H9: Fluidized bed firing | I9: 30 | J9: 518 | K9: 17.26666667 | L9: petroleum coke | O9: 0.2724293274 | P9: 5.347989322 | U9: 0.2724293274 | V9: 5.347989322 | W9: NOx control | X9: Selective Noncatalytic Reduction | Z9: PM control | AA9: Fabric Filter, pulse
A10: petroleum coke | B10: 50931 | C10: Yellowstone Energy LP | D10: MT | E10: Config1 | F10: BLR2 | G10: Fluidized bed firing | H10: Fluidized bed firing | I10: 30 | J10: 518 | K10: 17.26666667 | L10: petroleum coke | M10: 0.6047826087 | N10: 6.957296643 | U10: 0.6047826087 | V10: 6.957296643 | W10: NOx control | X10: Selective Catalytic Reduction | Y10: 2007-03-01 | Z10: PM control | AA10: Electrostatic precipitator, cold side, w/o flue gas conditioning | AB10: 1985-08-01 | AC10: SO2 control | AD10: Wet FGD - Spray Type | AE10: 1985-08-01 | AF10: Other control | AG10: Wet electrostatic precipitator | AH10: 1985-08-01
